Workbook

Sheet Сценарии (hidden)
B1: MAIN
B3: № | C3: Mode | D3: GSM | E3: UMTS | J3: LTE
D4: TRX | E4: CS | F4: CE | G4: HSDPA Code | H4: UL Throughput | I4: DL Throughput | J4: Cell | K4: UL Throughput | L4: DL Throughput | M4: RRC
B5: 1 | C5: G | D5: 72 | E5: 0 | F5: 0 | G5: 0 | H5: 0 | I5: 0 | J5: 0 | K5: 0 | L5: 0 | M5: 0
B6: 2 | C6: U | D6: 0 | E6: 12 | F6: 1024 | G6: 180 | H6: 138 | I6: 518.4 | J6: 0 | K6: 0 | L6: 0 | M6: 0
B7: 3 | C7: L | D7: 0 | E7: 0 | F7: 0 | G7: 0 | H7: 0 | I7: 0 | J7: 12 | K7: 600 | L7: 1200 | M7: 7200
B8: 4 | C8: GU1 | D8: 12 | E8: 12 | F8: 768 | G8: 180 | H8: 138 | I8: 518.4 | J8: 0 | K8: 0 | L8: 0 | M8: 0
B9: 5 | C9: GU2 | D9: 24 | E9: 9 | F9: 640 | G9: 135 | H9: 103.5 | I9: 388.8 | J9: 0 | K9: 0 | L9: 0 | M9: 0
B10: 6 | C10: GU3 | D10: 36 | E10: 6 | F10: 512 | G10: 90 | H10: 69 | I10: 259.2 | J10: 0 | K10: 0 | L10: 0 | M10: 0
B11: 7 | C11: GU4 | D11: 48 | E11: 6 | F11: 256 | G11: 90 | H11: 69 | I11: 259.2 | J11: 0 | K11: 0 | L11: 0 | M11: 0
B12: 8 | C12: GL | D12: 36 | E12: 0 | F12: 0 | G12: 0 | H12: 0 | I12: 0 | J12: 6 | K12: 300 | L12: 600 | M12: 3600
B13: 9 | C13: UL | D13: 0 | E13: 6 | F13: 512 | G13: 90 | H13: 69 | I13: 259.2 | J13: 6 | K13: 300 | L13: 600 | M13: 3600
B14: 10 | C14: GUL1 | D14: 12 | E14: 6 | F14: 256 | G14: 90 | H14: 69 | I14: 259.2 | J14: 6 | K14: 300 | L14: 600 | M14: 3600
B15: 11 | C15: GUL2 | D15: 24 | E15: 3 | F15: 128 | G15: 45 | H15: 34.5 | I15: 129.6 | J15: 6 | K15: 300 | L15: 600 | M15: 3600
D17: =СуммЦвет(D5:D15,B1) -> 
D20: 2G | E20: 3G | J20: 4G
D21: trx | E21: cs | F21: ce | H21: thpulu | I21: thpdlu | J21: cells | K21: thpull | L21: thpdll | M21: rrc
D22: 24 | E22: 9 | F22: =E22*150 -> 1350 | H22: =E22*5.6 -> 50.4 | I22: =E22*21 -> 189 | J22: 3 | K22: =J22*50 -> 150 | L22: =J22*150 -> 450 | M22: =J22*192 -> 576

Sheet User
D1: Задайте необходимые параметры:
D2: GMS | E2: UMTS | J2: LTE | N2: Mode
D3: TRX | E3: CS | F3: CE | G3: HSDPA Code | H3: UL Throughput | I3: DL Throughput | J3: Cell | K3: UL Throughput | L3: DL Throughput | M3: RRC
D4: 25 | F4: 1500 | M4: 3600
D5: *Обязательны для заполнения!
B6: Нужно добрать | M6: Избыток
D7: =D8-D4 -> -25 | F7: =F8-F4 -> -1500 | M7: =M8-M4 -> -3600
B8: Сумма значений: | D8: =D24 -> 0 | E8: =E24 -> 0 | F8: 0 | G8: 0 | H8: 0 | I8: 0 | J8: 0 | K8: 0 | L8: 0 | M8: 0 | N8: 0
B10: Результат | N10: Кол-во плат
B11: № | C11: Mode | D11: GSM | E11: UMTS | J11: LTE
D12: TRX | E12: CS | F12: CE | G12: HSDPA Code | H12: UL Throughput | I12: DL Throughput | J12: Cell | K12: UL Throughput | L12: DL Throughput | M12: RRC
B13: 1 | C13: G | D13: 72 | E13: 0 | F13: 0 | G13: 0 | H13: 0 | I13: 0 | J13: 0 | K13: 0 | L13: 0 | M13: 0 | N13: =COUNTIF($P$26:$S$26,$C13) -> 0
B14: 2 | C14: U | D14: 0 | E14: 12 | F14: 1024 | G14: 180 | H14: 138 | I14: 518.4 | J14: 0 | K14: 0 | L14: 0 | M14: 0 | N14: =COUNTIF($P$26:$S$26,$C14) -> 0
B15: 3 | C15: L | D15: 0 | E15: 0 | F15: 0 | G15: 0 | H15: 0 | I15: 0 | J15: 12 | K15: 600 | L15: 1200 | M15: 7200 | N15: 0
B16: 4 | C16: GU1 | D16: 12 | E16: 12 | F16: 768 | G16: 180 | H16: 138 | I16: 518.4 | J16: 0 | K16: 0 | L16: 0 | M16: 0 | N16: 0
B17: 5 | C17: GU2 | D17: 24 | E17: 9 | F17: 640 | G17: 135 | H17: 103.5 | I17: 388.8 | J17: 0 | K17: 0 | L17: 0 | M17: 0 | N17: 0 | W17: Вставить в Макрос9
B18: 6 | C18: GU3 | D18: 36 | E18: 6 | F18: 512 | G18: 90 | H18: 69 | I18: 259.2 | J18: 0 | K18: 0 | L18: 0 | M18: 0 | N18: 0 | W18: ЕСЛИ($N$4="GU";КОРЕНЬ(T30^2+U30^2);ЕСЛИ($N$4="GL";КОРЕНЬ(T30^2+V30^2);ЕСЛИ($N$4="UL";КОРЕНЬ(U30^2+V30^2))))
B19: 7 | C19: GU4 | D19: 48 | E19: 6 | F19: 256 | G19: 90 | H19: 69 | I19: 259.2 | J19: 0 | K19: 0 | L19: 0 | M19: 0 | N19: 0 | W19: ЕСЛИ($N$4="G";T30;ЕСЛИ($N$4="U";U30;ЕСЛИ($N$4="L";V30)))
B20: 8 | C20: GL | D20: 36 | E20: 0 | F20: 0 | G20: 0 | H20: 0 | I20: 0 | J20: 6 | K20: 300 | L20: 600 | M20: 3600 | N20: 0
B21: 9 | C21: UL | D21: 0 | E21: 6 | F21: 512 | G21: 90 | H21: 69 | I21: 259.2 | J21: 6 | K21: 300 | L21: 600 | M21: 3600 | N21: 0
B22: 10 | C22: GUL1 | D22: 12 | E22: 6 | F22: 256 | G22: 90 | H22: 69 | I22: 259.2 | J22: 6 | K22: 300 | L22: 600 | M22: 3600 | N22: 0
B23: 11 | C23: GUL2 | D23: 24 | E23: 3 | F23: 128 | G23: 45 | H23: 34.5 | I23: 129.6 | J23: 6 | K23: 300 | L23: 600 | M23: 3600 | N23: 0
B24: Сумма значений: | D24: =SUMPRODUCT(D13:D23,N13:N23) -> 0 | E24: =SUMPRODUCT(E13:E23,N13:N23) -> 0 | F24: =SUMPRODUCT(F13:F23,N13:N23) -> 0 | G24: =SUMPRODUCT(G13:G23,N13:N23) -> 0 | H24: =SUMPRODUCT(H13:H23,N13:N23) -> 0 | I24: =SUMPRODUCT(I13:I23,N13:N23) -> 0 | J24: =SUMPRODUCT(J13:J23,N13:N23) -> 0 | K24: =SUMPRODUCT(K13:K23,N13:N23) -> 0 | L24: =SUMPRODUCT(L13:L23,N13:N23) -> 0 | M24: =SUMPRODUCT(M13:M23,N13:N23) -> 0 | N24: =SUM(N13:N23) -> 0 | X24: Первую в этот столбик | Y24: Вторую (короткую) в этот столбик
P27: Возможные варианты | X27: Optim
P29: bp1 | Q29: bp2 | R29: bp3 | S29: bp4 | T29: trx | U29: ce | V29: rrc | W29: N | X29: MULTI | Y29: SINGLE
X30: =IF($N$4="GU",SQRT(T30^2+U30^2),IF($N$4="GL",SQRT(T30^2+V30^2),IF($N$4="UL",SQRT(U30^2+V30^2)))) -> FALSE | Y30: =IF($N$4="G",T30,IF($N$4="U",U30,IF($N$4="L",V30))) -> FALSE
A31: asdas | X31: FALSE | Y31: FALSE

Sheet BPN2 Mode
B1: BPN2 mode | F1: Total capacity | I1: N кол-во плат
B2: BP 1 | C2: BP 2 | D2: BP 3 | E2: BP 4 | F2: TRX | G2: CE | H2: RRC
B3: G | F3: =VLOOKUP($B3,Сценарии!$C$5:$M$15,2,0) -> 72 | G3: =VLOOKUP($B3,Сценарии!$C$5:$M$15,4,0) -> 0 | H3: =VLOOKUP($B3,Сценарии!$C$5:$M$15,11,0) -> 0 | I3: =COUNTA(B3,C3,D3,E3) -> 1
B4: U | F4: =VLOOKUP($B4,Сценарии!$C$5:$M$15,2,0) -> 0 | G4: =VLOOKUP($B4,Сценарии!$C$5:$M$15,4,0) -> 1024 | H4: =VLOOKUP($B4,Сценарии!$C$5:$M$15,11,0) -> 0 | I4: 1
B5: L | F5: =VLOOKUP($B5,Сценарии!$C$5:$M$15,2,0) -> 0 | G5: =VLOOKUP($B5,Сценарии!$C$5:$M$15,4,0) -> 0 | H5: =VLOOKUP($B5,Сценарии!$C$5:$M$15,11,0) -> 7200 | I5: 1
B6: GU1 | F6: =VLOOKUP($B6,Сценарии!$C$5:$M$15,2,0) -> 12 | G6: =VLOOKUP($B6,Сценарии!$C$5:$M$15,4,0) -> 768 | H6: =VLOOKUP($B6,Сценарии!$C$5:$M$15,11,0) -> 0 | I6: 1
B7: GU2 | F7: =VLOOKUP($B7,Сценарии!$C$5:$M$15,2,0) -> 24 | G7: =VLOOKUP($B7,Сценарии!$C$5:$M$15,4,0) -> 640 | H7: =VLOOKUP($B7,Сценарии!$C$5:$M$15,11,0) -> 0 | I7: 1
B8: GU3 | F8: =VLOOKUP($B8,Сценарии!$C$5:$M$15,2,0) -> 36 | G8: =VLOOKUP($B8,Сценарии!$C$5:$M$15,4,0) -> 512 | H8: =VLOOKUP($B8,Сценарии!$C$5:$M$15,11,0) -> 0 | I8: 1
B9: GU4 | F9: =VLOOKUP($B9,Сценарии!$C$5:$M$15,2,0) -> 48 | G9: =VLOOKUP($B9,Сценарии!$C$5:$M$15,4,0) -> 256 | H9: =VLOOKUP($B9,Сценарии!$C$5:$M$15,11,0) -> 0 | I9: 1
B10: GL | F10: =VLOOKUP($B10,Сценарии!$C$5:$M$15,2,0) -> 36 | G10: =VLOOKUP($B10,Сценарии!$C$5:$M$15,4,0) -> 0 | H10: =VLOOKUP($B10,Сценарии!$C$5:$M$15,11,0) -> 3600 | I10: 1
B11: UL | F11: =VLOOKUP($B11,Сценарии!$C$5:$M$15,2,0) -> 0 | G11: =VLOOKUP($B11,Сценарии!$C$5:$M$15,4,0) -> 512 | H11: =VLOOKUP($B11,Сценарии!$C$5:$M$15,11,0) -> 3600 | I11: 1
B12: GUL1 | F12: =VLOOKUP($B12,Сценарии!$C$5:$M$15,2,0) -> 12 | G12: =VLOOKUP($B12,Сценарии!$C$5:$M$15,4,0) -> 256 | H12: =VLOOKUP($B12,Сценарии!$C$5:$M$15,11,0) -> 3600 | I12: 1
B13: GUL2 | F13: =VLOOKUP($B13,Сценарии!$C$5:$M$15,2,0) -> 24 | G13: =VLOOKUP($B13,Сценарии!$C$5:$M$15,4,0) -> 128 | H13: =VLOOKUP($B13,Сценарии!$C$5:$M$15,11,0) -> 3600 | I13: 1
B14: G | C14: U | F14: =VLOOKUP($B14,Сценарии!$C$5:$M$15,2,0)+VLOOKUP($C14,Сценарии!$C$5:$M$15,2,0) -> 72 | G14: =VLOOKUP($B14,Сценарии!$C$5:$M$15,4,0)+VLOOKUP($C14,Сценарии!$C$5:$M$15,4,0) -> 1024 | H14: =VLOOKUP($B14,Сценарии!$C$5:$M$15,11,0)+VLOOKUP($C14,Сценарии!$C$5:$M$15,11,0) -> 0 | I14: 2
B15: G | C15: L | F15: =VLOOKUP($B15,Сценарии!$C$5:$M$15,2,0)+VLOOKUP($C15,Сценарии!$C$5:$M$15,2,0) -> 72 | G15: =VLOOKUP($B15,Сценарии!$C$5:$M$15,4,0)+VLOOKUP($C15,Сценарии!$C$5:$M$15,4,0) -> 0 | H15: =VLOOKUP($B15,Сценарии!$C$5:$M$15,11,0)+VLOOKUP($C15,Сценарии!$C$5:$M$15,11,0) -> 7200 | I15: 2
B16: G | C16: GU1 | F16: =VLOOKUP($B16,Сценарии!$C$5:$M$15,2,0)+VLOOKUP($C16,Сценарии!$C$5:$M$15,2,0) -> 84 | G16: =VLOOKUP($B16,Сценарии!$C$5:$M$15,4,0)+VLOOKUP($C16,Сценарии!$C$5:$M$15,4,0) -> 768 | H16: =VLOOKUP($B16,Сценарии!$C$5:$M$15,11,0)+VLOOKUP($C16,Сценарии!$C$5:$M$15,11,0) -> 0 | I16: 2
B17: G | C17: GU2 | F17: =VLOOKUP($B17,Сценарии!$C$5:$M$15,2,0)+VLOOKUP($C17,Сценарии!$C$5:$M$15,2,0) -> 96 | G17: =VLOOKUP($B17,Сценарии!$C$5:$M$15,4,0)+VLOOKUP($C17,Сценарии!$C$5:$M$15,4,0) -> 640 | H17: =VLOOKUP($B17,Сценарии!$C$5:$M$15,11,0)+VLOOKUP($C17,Сценарии!$C$5:$M$15,11,0) -> 0 | I17: 2
B18: G | C18: GU3 | F18: =VLOOKUP($B18,Сценарии!$C$5:$M$15,2,0)+VLOOKUP($C18,Сценарии!$C$5:$M$15,2,0) -> 108 | G18: =VLOOKUP($B18,Сценарии!$C$5:$M$15,4,0)+VLOOKUP($C18,Сценарии!$C$5:$M$15,4,0) -> 512 | H18: =VLOOKUP($B18,Сценарии!$C$5:$M$15,11,0)+VLOOKUP($C18,Сценарии!$C$5:$M$15,11,0) -> 0 | I18: 2
B19: G | C19: GU4 | F19: =VLOOKUP($B19,Сценарии!$C$5:$M$15,2,0)+VLOOKUP($C19,Сценарии!$C$5:$M$15,2,0) -> 120 | G19: =VLOOKUP($B19,Сценарии!$C$5:$M$15,4,0)+VLOOKUP($C19,Сценарии!$C$5:$M$15,4,0) -> 256 | H19: =VLOOKUP($B19,Сценарии!$C$5:$M$15,11,0)+VLOOKUP($C19,Сценарии!$C$5:$M$15,11,0) -> 0 | I19: 2
B20: G | C20: GL | F20: =VLOOKUP($B20,Сценарии!$C$5:$M$15,2,0)+VLOOKUP($C20,Сценарии!$C$5:$M$15,2,0) -> 108 | G20: =VLOOKUP($B20,Сценарии!$C$5:$M$15,4,0)+VLOOKUP($C20,Сценарии!$C$5:$M$15,4,0) -> 0 | H20: =VLOOKUP($B20,Сценарии!$C$5:$M$15,11,0)+VLOOKUP($C20,Сценарии!$C$5:$M$15,11,0) -> 3600 | I20: 2
B21: G | C21: UL | F21: =VLOOKUP($B21,Сценарии!$C$5:$M$15,2,0)+VLOOKUP($C21,Сценарии!$C$5:$M$15,2,0) -> 72 | G21: =VLOOKUP($B21,Сценарии!$C$5:$M$15,4,0)+VLOOKUP($C21,Сценарии!$C$5:$M$15,4,0) -> 512 | H21: =VLOOKUP($B21,Сценарии!$C$5:$M$15,11,0)+VLOOKUP($C21,Сценарии!$C$5:$M$15,11,0) -> 3600 | I21: 2
B22: G | C22: GUL1 | F22: =VLOOKUP($B22,Сценарии!$C$5:$M$15,2,0)+VLOOKUP($C22,Сценарии!$C$5:$M$15,2,0) -> 84 | G22: =VLOOKUP($B22,Сценарии!$C$5:$M$15,4,0)+VLOOKUP($C22,Сценарии!$C$5:$M$15,4,0) -> 256 | H22: =VLOOKUP($B22,Сценарии!$C$5:$M$15,11,0)+VLOOKUP($C22,Сценарии!$C$5:$M$15,11,0) -> 3600 | I22: 2
B23: G | C23: GUL2 | F23: =VLOOKUP($B23,Сценарии!$C$5:$M$15,2,0)+VLOOKUP($C23,Сценарии!$C$5:$M$15,2,0) -> 96 | G23: =VLOOKUP($B23,Сценарии!$C$5:$M$15,4,0)+VLOOKUP($C23,Сценарии!$C$5:$M$15,4,0) -> 128 | H23: =VLOOKUP($B23,Сценарии!$C$5:$M$15,11,0)+VLOOKUP($C23,Сценарии!$C$5:$M$15,11,0) -> 3600 | I23: 2
B24: U | C24: L | F24: =VLOOKUP($B24,Сценарии!$C$5:$M$15,2,0)+VLOOKUP($C24,Сценарии!$C$5:$M$15,2,0) -> 0 | G24: =VLOOKUP($B24,Сценарии!$C$5:$M$15,4,0)+VLOOKUP($C24,Сценарии!$C$5:$M$15,4,0) -> 1024 | H24: =VLOOKUP($B24,Сценарии!$C$5:$M$15,11,0)+VLOOKUP($C24,Сценарии!$C$5:$M$15,11,0) -> 7200 | I24: 2
B25: U | C25: GU1 | F25: =VLOOKUP($B25,Сценарии!$C$5:$M$15,2,0)+VLOOKUP($C25,Сценарии!$C$5:$M$15,2,0) -> 12 | G25: =VLOOKUP($B25,Сценарии!$C$5:$M$15,4,0)+VLOOKUP($C25,Сценарии!$C$5:$M$15,4,0) -> 1792 | H25: =VLOOKUP($B25,Сценарии!$C$5:$M$15,11,0)+VLOOKUP($C25,Сценарии!$C$5:$M$15,11,0) -> 0 | I25: 2
B26: U | C26: GU2 | F26: =VLOOKUP($B26,Сценарии!$C$5:$M$15,2,0)+VLOOKUP($C26,Сценарии!$C$5:$M$15,2,0) -> 24 | G26: =VLOOKUP($B26,Сценарии!$C$5:$M$15,4,0)+VLOOKUP($C26,Сценарии!$C$5:$M$15,4,0) -> 1664 | H26: =VLOOKUP($B26,Сценарии!$C$5:$M$15,11,0)+VLOOKUP($C26,Сценарии!$C$5:$M$15,11,0) -> 0 | I26: 2
B27: U | C27: GU3 | F27: =VLOOKUP($B27,Сценарии!$C$5:$M$15,2,0)+VLOOKUP($C27,Сценарии!$C$5:$M$15,2,0) -> 36 | G27: =VLOOKUP($B27,Сценарии!$C$5:$M$15,4,0)+VLOOKUP($C27,Сценарии!$C$5:$M$15,4,0) -> 1536 | H27: =VLOOKUP($B27,Сценарии!$C$5:$M$15,11,0)+VLOOKUP($C27,Сценарии!$C$5:$M$15,11,0) -> 0 | I27: 2
B28: U | C28: GU4 | F28: =VLOOKUP($B28,Сценарии!$C$5:$M$15,2,0)+VLOOKUP($C28,Сценарии!$C$5:$M$15,2,0) -> 48 | G28: =VLOOKUP($B28,Сценарии!$C$5:$M$15,4,0)+VLOOKUP($C28,Сценарии!$C$5:$M$15,4,0) -> 1280 | H28: =VLOOKUP($B28,Сценарии!$C$5:$M$15,11,0)+VLOOKUP($C28,Сценарии!$C$5:$M$15,11,0) -> 0 | I28: 2
B29: U | C29: GL | F29: =VLOOKUP($B29,Сценарии!$C$5:$M$15,2,0)+VLOOKUP($C29,Сценарии!$C$5:$M$15,2,0) -> 36 | G29: =VLOOKUP($B29,Сценарии!$C$5:$M$15,4,0)+VLOOKUP($C29,Сценарии!$C$5:$M$15,4,0) -> 1024 | H29: =VLOOKUP($B29,Сценарии!$C$5:$M$15,11,0)+VLOOKUP($C29,Сценарии!$C$5:$M$15,11,0) -> 3600 | I29: 2
B30: U | C30: UL | F30: =VLOOKUP($B30,Сценарии!$C$5:$M$15,2,0)+VLOOKUP($C30,Сценарии!$C$5:$M$15,2,0) -> 0 | G30: =VLOOKUP($B30,Сценарии!$C$5:$M$15,4,0)+VLOOKUP($C30,Сценарии!$C$5:$M$15,4,0) -> 1536 | H30: =VLOOKUP($B30,Сценарии!$C$5:$M$15,11,0)+VLOOKUP($C30,Сценарии!$C$5:$M$15,11,0) -> 3600 | I30: 2
B31: U | C31: GUL1 | F31: =VLOOKUP($B31,Сценарии!$C$5:$M$15,2,0)+VLOOKUP($C31,Сценарии!$C$5:$M$15,2,0) -> 12 | G31: =VLOOKUP($B31,Сценарии!$C$5:$M$15,4,0)+VLOOKUP($C31,Сценарии!$C$5:$M$15,4,0) -> 1280 | H31: =VLOOKUP($B31,Сценарии!$C$5:$M$15,11,0)+VLOOKUP($C31,Сценарии!$C$5:$M$15,11,0) -> 3600 | I31: 2
B32: U | C32: GUL2 | F32: =VLOOKUP($B32,Сценарии!$C$5:$M$15,2,0)+VLOOKUP($C32,Сценарии!$C$5:$M$15,2,0) -> 24 | G32: =VLOOKUP($B32,Сценарии!$C$5:$M$15,4,0)+VLOOKUP($C32,Сценарии!$C$5:$M$15,4,0) -> 1152 | H32: =VLOOKUP($B32,Сценарии!$C$5:$M$15,11,0)+VLOOKUP($C32,Сценарии!$C$5:$M$15,11,0) -> 3600 | I32: 2
B33: L | C33: GU1 | F33: =VLOOKUP($B33,Сценарии!$C$5:$M$15,2,0)+VLOOKUP($C33,Сценарии!$C$5:$M$15,2,0) -> 12 | G33: =VLOOKUP($B33,Сценарии!$C$5:$M$15,4,0)+VLOOKUP($C33,Сценарии!$C$5:$M$15,4,0) -> 768 | H33: =VLOOKUP($B33,Сценарии!$C$5:$M$15,11,0)+VLOOKUP($C33,Сценарии!$C$5:$M$15,11,0) -> 7200 | I33: 2
B34: L | C34: GU2 | F34: =VLOOKUP($B34,Сценарии!$C$5:$M$15,2,0)+VLOOKUP($C34,Сценарии!$C$5:$M$15,2,0) -> 24 | G34: =VLOOKUP($B34,Сценарии!$C$5:$M$15,4,0)+VLOOKUP($C34,Сценарии!$C$5:$M$15,4,0) -> 640 | H34: =VLOOKUP($B34,Сценарии!$C$5:$M$15,11,0)+VLOOKUP($C34,Сценарии!$C$5:$M$15,11,0) -> 7200 | I34: 2
B35: L | C35: GU3 | F35: =VLOOKUP($B35,Сценарии!$C$5:$M$15,2,0)+VLOOKUP($C35,Сценарии!$C$5:$M$15,2,0) -> 36 | G35: =VLOOKUP($B35,Сценарии!$C$5:$M$15,4,0)+VLOOKUP($C35,Сценарии!$C$5:$M$15,4,0) -> 512 | H35: =VLOOKUP($B35,Сценарии!$C$5:$M$15,11,0)+VLOOKUP($C35,Сценарии!$C$5:$M$15,11,0) -> 7200 | I35: 2
B36: L | C36: GU4 | F36: =VLOOKUP($B36,Сценарии!$C$5:$M$15,2,0)+VLOOKUP($C36,Сценарии!$C$5:$M$15,2,0) -> 48 | G36: =VLOOKUP($B36,Сценарии!$C$5:$M$15,4,0)+VLOOKUP($C36,Сценарии!$C$5:$M$15,4,0) -> 256 | H36: =VLOOKUP($B36,Сценарии!$C$5:$M$15,11,0)+VLOOKUP($C36,Сценарии!$C$5:$M$15,11,0) -> 7200 | I36: 2
B37: L | C37: GL | F37: =VLOOKUP($B37,Сценарии!$C$5:$M$15,2,0)+VLOOKUP($C37,Сценарии!$C$5:$M$15,2,0) -> 36 | G37: =VLOOKUP($B37,Сценарии!$C$5:$M$15,4,0)+VLOOKUP($C37,Сценарии!$C$5:$M$15,4,0) -> 0 | H37: =VLOOKUP($B37,Сценарии!$C$5:$M$15,11,0)+VLOOKUP($C37,Сценарии!$C$5:$M$15,11,0) -> 10800 | I37: 2
B38: L | C38: UL | F38: =VLOOKUP($B38,Сценарии!$C$5:$M$15,2,0)+VLOOKUP($C38,Сценарии!$C$5:$M$15,2,0) -> 0 | G38: =VLOOKUP($B38,Сценарии!$C$5:$M$15,4,0)+VLOOKUP($C38,Сценарии!$C$5:$M$15,4,0) -> 512 | H38: =VLOOKUP($B38,Сценарии!$C$5:$M$15,11,0)+VLOOKUP($C38,Сценарии!$C$5:$M$15,11,0) -> 10800 | I38: 2
B39: L | C39: GUL1 | F39: =VLOOKUP($B39,Сценарии!$C$5:$M$15,2,0)+VLOOKUP($C39,Сценарии!$C$5:$M$15,2,0) -> 12 | G39: =VLOOKUP($B39,Сценарии!$C$5:$M$15,4,0)+VLOOKUP($C39,Сценарии!$C$5:$M$15,4,0) -> 256 | H39: =VLOOKUP($B39,Сценарии!$C$5:$M$15,11,0)+VLOOKUP($C39,Сценарии!$C$5:$M$15,11,0) -> 10800 | I39: 2
B40: L | C40: GUL2 | F40: =VLOOKUP($B40,Сценарии!$C$5:$M$15,2,0)+VLOOKUP($C40,Сценарии!$C$5:$M$15,2,0) -> 24 | G40: =VLOOKUP($B40,Сценарии!$C$5:$M$15,4,0)+VLOOKUP($C40,Сценарии!$C$5:$M$15,4,0) -> 128 | H40: =VLOOKUP($B40,Сценарии!$C$5:$M$15,11,0)+VLOOKUP($C40,Сценарии!$C$5:$M$15,11,0) -> 10800 | I40: 2
B41: GU1 | C41: GU2 | F41: =VLOOKUP($B41,Сценарии!$C$5:$M$15,2,0)+VLOOKUP($C41,Сценарии!$C$5:$M$15,2,0) -> 36 | G41: =VLOOKUP($B41,Сценарии!$C$5:$M$15,4,0)+VLOOKUP($C41,Сценарии!$C$5:$M$15,4,0) -> 1408 | H41: =VLOOKUP($B41,Сценарии!$C$5:$M$15,11,0)+VLOOKUP($C41,Сценарии!$C$5:$M$15,11,0) -> 0 | I41: 2
B42: GU1 | C42: GU3 | F42: =VLOOKUP($B42,Сценарии!$C$5:$M$15,2,0)+VLOOKUP($C42,Сценарии!$C$5:$M$15,2,0) -> 48 | G42: =VLOOKUP($B42,Сценарии!$C$5:$M$15,4,0)+VLOOKUP($C42,Сценарии!$C$5:$M$15,4,0) -> 1280 | H42: =VLOOKUP($B42,Сценарии!$C$5:$M$15,11,0)+VLOOKUP($C42,Сценарии!$C$5:$M$15,11,0) -> 0 | I42: 2
B43: GU1 | C43: GU4 | F43: =VLOOKUP($B43,Сценарии!$C$5:$M$15,2,0)+VLOOKUP($C43,Сценарии!$C$5:$M$15,2,0) -> 60 | G43: =VLOOKUP($B43,Сценарии!$C$5:$M$15,4,0)+VLOOKUP($C43,Сценарии!$C$5:$M$15,4,0) -> 1024 | H43: =VLOOKUP($B43,Сценарии!$C$5:$M$15,11,0)+VLOOKUP($C43,Сценарии!$C$5:$M$15,11,0) -> 0 | I43: 2
B44: GU1 | C44: GL | F44: =VLOOKUP($B44,Сценарии!$C$5:$M$15,2,0)+VLOOKUP($C44,Сценарии!$C$5:$M$15,2,0) -> 48 | G44: =VLOOKUP($B44,Сценарии!$C$5:$M$15,4,0)+VLOOKUP($C44,Сценарии!$C$5:$M$15,4,0) -> 768 | H44: =VLOOKUP($B44,Сценарии!$C$5:$M$15,11,0)+VLOOKUP($C44,Сценарии!$C$5:$M$15,11,0) -> 3600 | I44: 2
B45: GU1 | C45: UL | F45: =VLOOKUP($B45,Сценарии!$C$5:$M$15,2,0)+VLOOKUP($C45,Сценарии!$C$5:$M$15,2,0) -> 12 | G45: =VLOOKUP($B45,Сценарии!$C$5:$M$15,4,0)+VLOOKUP($C45,Сценарии!$C$5:$M$15,4,0) -> 1280 | H45: =VLOOKUP($B45,Сценарии!$C$5:$M$15,11,0)+VLOOKUP($C45,Сценарии!$C$5:$M$15,11,0) -> 3600 | I45: 2
B46: GU1 | C46: GUL1 | F46: =VLOOKUP($B46,Сценарии!$C$5:$M$15,2,0)+VLOOKUP($C46,Сценарии!$C$5:$M$15,2,0) -> 24 | G46: =VLOOKUP($B46,Сценарии!$C$5:$M$15,4,0)+VLOOKUP($C46,Сценарии!$C$5:$M$15,4,0) -> 1024 | H46: =VLOOKUP($B46,Сценарии!$C$5:$M$15,11,0)+VLOOKUP($C46,Сценарии!$C$5:$M$15,11,0) -> 3600 | I46: 2
B47: GU1 | C47: GUL2 | F47: =VLOOKUP($B47,Сценарии!$C$5:$M$15,2,0)+VLOOKUP($C47,Сценарии!$C$5:$M$15,2,0) -> 36 | G47: =VLOOKUP($B47,Сценарии!$C$5:$M$15,4,0)+VLOOKUP($C47,Сценарии!$C$5:$M$15,4,0) -> 896 | H47: =VLOOKUP($B47,Сценарии!$C$5:$M$15,11,0)+VLOOKUP($C47,Сценарии!$C$5:$M$15,11,0) -> 3600 | I47: 2
B48: GU2 | C48: GU3 | F48: =VLOOKUP($B48,Сценарии!$C$5:$M$15,2,0)+VLOOKUP($C48,Сценарии!$C$5:$M$15,2,0) -> 60 | G48: =VLOOKUP($B48,Сценарии!$C$5:$M$15,4,0)+VLOOKUP($C48,Сценарии!$C$5:$M$15,4,0) -> 1152 | H48: =VLOOKUP($B48,Сценарии!$C$5:$M$15,11,0)+VLOOKUP($C48,Сценарии!$C$5:$M$15,11,0) -> 0 | I48: 2
B49: GU2 | C49: GU4 | F49: =VLOOKUP($B49,Сценарии!$C$5:$M$15,2,0)+VLOOKUP($C49,Сценарии!$C$5:$M$15,2,0) -> 72 | G49: =VLOOKUP($B49,Сценарии!$C$5:$M$15,4,0)+VLOOKUP($C49,Сценарии!$C$5:$M$15,4,0) -> 896 | H49: =VLOOKUP($B49,Сценарии!$C$5:$M$15,11,0)+VLOOKUP($C49,Сценарии!$C$5:$M$15,11,0) -> 0 | I49: 2
B50: GU2 | C50: GL | F50: =VLOOKUP($B50,Сценарии!$C$5:$M$15,2,0)+VLOOKUP($C50,Сценарии!$C$5:$M$15,2,0) -> 60 | G50: =VLOOKUP($B50,Сценарии!$C$5:$M$15,4,0)+VLOOKUP($C50,Сценарии!$C$5:$M$15,4,0) -> 640 | H50: =VLOOKUP($B50,Сценарии!$C$5:$M$15,11,0)+VLOOKUP($C50,Сценарии!$C$5:$M$15,11,0) -> 3600 | I50: 2
B51: GU2 | C51: UL | F51: =VLOOKUP($B51,Сценарии!$C$5:$M$15,2,0)+VLOOKUP($C51,Сценарии!$C$5:$M$15,2,0) -> 24 | G51: =VLOOKUP($B51,Сценарии!$C$5:$M$15,4,0)+VLOOKUP($C51,Сценарии!$C$5:$M$15,4,0) -> 1152 | H51: =VLOOKUP($B51,Сценарии!$C$5:$M$15,11,0)+VLOOKUP($C51,Сценарии!$C$5:$M$15,11,0) -> 3600 | I51: 2
B52: GU2 | C52: GUL1 | F52: =VLOOKUP($B52,Сценарии!$C$5:$M$15,2,0)+VLOOKUP($C52,Сценарии!$C$5:$M$15,2,0) -> 36 | G52: =VLOOKUP($B52,Сценарии!$C$5:$M$15,4,0)+VLOOKUP($C52,Сценарии!$C$5:$M$15,4,0) -> 896 | H52: =VLOOKUP($B52,Сценарии!$C$5:$M$15,11,0)+VLOOKUP($C52,Сценарии!$C$5:$M$15,11,0) -> 3600 | I52: 2
B53: GU2 | C53: GUL2 | F53: =VLOOKUP($B53,Сценарии!$C$5:$M$15,2,0)+VLOOKUP($C53,Сценарии!$C$5:$M$15,2,0) -> 48 | G53: =VLOOKUP($B53,Сценарии!$C$5:$M$15,4,0)+VLOOKUP($C53,Сценарии!$C$5:$M$15,4,0) -> 768 | H53: =VLOOKUP($B53,Сценарии!$C$5:$M$15,11,0)+VLOOKUP($C53,Сценарии!$C$5:$M$15,11,0) -> 3600 | I53: 2
B54: GU3 | C54: GU4 | F54: =VLOOKUP($B54,Сценарии!$C$5:$M$15,2,0)+VLOOKUP($C54,Сценарии!$C$5:$M$15,2,0) -> 84 | G54: =VLOOKUP($B54,Сценарии!$C$5:$M$15,4,0)+VLOOKUP($C54,Сценарии!$C$5:$M$15,4,0) -> 768 | H54: =VLOOKUP($B54,Сценарии!$C$5:$M$15,11,0)+VLOOKUP($C54,Сценарии!$C$5:$M$15,11,0) -> 0 | I54: 2
B55: GU3 | C55: GL | F55: =VLOOKUP($B55,Сценарии!$C$5:$M$15,2,0)+VLOOKUP($C55,Сценарии!$C$5:$M$15,2,0) -> 72 | G55: =VLOOKUP($B55,Сценарии!$C$5:$M$15,4,0)+VLOOKUP($C55,Сценарии!$C$5:$M$15,4,0) -> 512 | H55: =VLOOKUP($B55,Сценарии!$C$5:$M$15,11,0)+VLOOKUP($C55,Сценарии!$C$5:$M$15,11,0) -> 3600 | I55: 2
B56: GU3 | C56: UL | F56: =VLOOKUP($B56,Сценарии!$C$5:$M$15,2,0)+VLOOKUP($C56,Сценарии!$C$5:$M$15,2,0) -> 36 | G56: =VLOOKUP($B56,Сценарии!$C$5:$M$15,4,0)+VLOOKUP($C56,Сценарии!$C$5:$M$15,4,0) -> 1024 | H56: =VLOOKUP($B56,Сценарии!$C$5:$M$15,11,0)+VLOOKUP($C56,Сценарии!$C$5:$M$15,11,0) -> 3600 | I56: 2
B57: GU3 | C57: GUL1 | F57: =VLOOKUP($B57,Сценарии!$C$5:$M$15,2,0)+VLOOKUP($C57,Сценарии!$C$5:$M$15,2,0) -> 48 | G57: =VLOOKUP($B57,Сценарии!$C$5:$M$15,4,0)+VLOOKUP($C57,Сценарии!$C$5:$M$15,4,0) -> 768 | H57: =VLOOKUP($B57,Сценарии!$C$5:$M$15,11,0)+VLOOKUP($C57,Сценарии!$C$5:$M$15,11,0) -> 3600 | I57: 2
B58: GU3 | C58: GUL2 | F58: =VLOOKUP($B58,Сценарии!$C$5:$M$15,2,0)+VLOOKUP($C58,Сценарии!$C$5:$M$15,2,0) -> 60 | G58: =VLOOKUP($B58,Сценарии!$C$5:$M$15,4,0)+VLOOKUP($C58,Сценарии!$C$5:$M$15,4,0) -> 640 | H58: =VLOOKUP($B58,Сценарии!$C$5:$M$15,11,0)+VLOOKUP($C58,Сценарии!$C$5:$M$15,11,0) -> 3600 | I58: 2
B59: GU4 | C59: GL | F59: =VLOOKUP($B59,Сценарии!$C$5:$M$15,2,0)+VLOOKUP($C59,Сценарии!$C$5:$M$15,2,0) -> 84 | G59: =VLOOKUP($B59,Сценарии!$C$5:$M$15,4,0)+VLOOKUP($C59,Сценарии!$C$5:$M$15,4,0) -> 256 | H59: =VLOOKUP($B59,Сценарии!$C$5:$M$15,11,0)+VLOOKUP($C59,Сценарии!$C$5:$M$15,11,0) -> 3600 | I59: 2
B60: GU4 | C60: UL | F60: =VLOOKUP($B60,Сценарии!$C$5:$M$15,2,0)+VLOOKUP($C60,Сценарии!$C$5:$M$15,2,0) -> 48 | G60: =VLOOKUP($B60,Сценарии!$C$5:$M$15,4,0)+VLOOKUP($C60,Сценарии!$C$5:$M$15,4,0) -> 768 | H60: =VLOOKUP($B60,Сценарии!$C$5:$M$15,11,0)+VLOOKUP($C60,Сценарии!$C$5:$M$15,11,0) -> 3600 | I60: 2
B61: GU4 | C61: GUL1 | F61: =VLOOKUP($B61,Сценарии!$C$5:$M$15,2,0)+VLOOKUP($C61,Сценарии!$C$5:$M$15,2,0) -> 60 | G61: =VLOOKUP($B61,Сценарии!$C$5:$M$15,4,0)+VLOOKUP($C61,Сценарии!$C$5:$M$15,4,0) -> 512 | H61: =VLOOKUP($B61,Сценарии!$C$5:$M$15,11,0)+VLOOKUP($C61,Сценарии!$C$5:$M$15,11,0) -> 3600 | I61: 2
B62: GU4 | C62: GUL2 | F62: =VLOOKUP($B62,Сценарии!$C$5:$M$15,2,0)+VLOOKUP($C62,Сценарии!$C$5:$M$15,2,0) -> 72 | G62: =VLOOKUP($B62,Сценарии!$C$5:$M$15,4,0)+VLOOKUP($C62,Сценарии!$C$5:$M$15,4,0) -> 384 | H62: =VLOOKUP($B62,Сценарии!$C$5:$M$15,11,0)+VLOOKUP($C62,Сценарии!$C$5:$M$15,11,0) -> 3600 | I62: 2
B63: GL | C63: UL | F63: =VLOOKUP($B63,Сценарии!$C$5:$M$15,2,0)+VLOOKUP($C63,Сценарии!$C$5:$M$15,2,0) -> 36 | G63: =VLOOKUP($B63,Сценарии!$C$5:$M$15,4,0)+VLOOKUP($C63,Сценарии!$C$5:$M$15,4,0) -> 512 | H63: =VLOOKUP($B63,Сценарии!$C$5:$M$15,11,0)+VLOOKUP($C63,Сценарии!$C$5:$M$15,11,0) -> 7200 | I63: 2
B64: GL | C64: GUL1 | F64: =VLOOKUP($B64,Сценарии!$C$5:$M$15,2,0)+VLOOKUP($C64,Сценарии!$C$5:$M$15,2,0) -> 48 | G64: =VLOOKUP($B64,Сценарии!$C$5:$M$15,4,0)+VLOOKUP($C64,Сценарии!$C$5:$M$15,4,0) -> 256 | H64: =VLOOKUP($B64,Сценарии!$C$5:$M$15,11,0)+VLOOKUP($C64,Сценарии!$C$5:$M$15,11,0) -> 7200 | I64: 2
B65: GL | C65: GUL2 | F65: =VLOOKUP($B65,Сценарии!$C$5:$M$15,2,0)+VLOOKUP($C65,Сценарии!$C$5:$M$15,2,0) -> 60 | G65: =VLOOKUP($B65,Сценарии!$C$5:$M$15,4,0)+VLOOKUP($C65,Сценарии!$C$5:$M$15,4,0) -> 128 | H65: =VLOOKUP($B65,Сценарии!$C$5:$M$15,11,0)+VLOOKUP($C65,Сценарии!$C$5:$M$15,11,0) -> 7200 | I65: 2
B66: UL | C66: GUL1 | F66: =VLOOKUP($B66,Сценарии!$C$5:$M$15,2,0)+VLOOKUP($C66,Сценарии!$C$5:$M$15,2,0) -> 12 | G66: =VLOOKUP($B66,Сценарии!$C$5:$M$15,4,0)+VLOOKUP($C66,Сценарии!$C$5:$M$15,4,0) -> 768 | H66: =VLOOKUP($B66,Сценарии!$C$5:$M$15,11,0)+VLOOKUP($C66,Сценарии!$C$5:$M$15,11,0) -> 7200 | I66: 2
B67: UL | C67: GUL2 | F67: =VLOOKUP($B67,Сценарии!$C$5:$M$15,2,0)+VLOOKUP($C67,Сценарии!$C$5:$M$15,2,0) -> 24 | G67: =VLOOKUP($B67,Сценарии!$C$5:$M$15,4,0)+VLOOKUP($C67,Сценарии!$C$5:$M$15,4,0) -> 640 | H67: =VLOOKUP($B67,Сценарии!$C$5:$M$15,11,0)+VLOOKUP($C67,Сценарии!$C$5:$M$15,11,0) -> 7200 | I67: =COUNTA(B67,C67,D67,E67) -> 2
B68: GUL1 | C68: GUL2 | F68: =VLOOKUP($B68,Сценарии!$C$5:$M$15,2,0)+VLOOKUP($C68,Сценарии!$C$5:$M$15,2,0) -> 36 | G68: =VLOOKUP($B68,Сценарии!$C$5:$M$15,4,0)+VLOOKUP($C68,Сценарии!$C$5:$M$15,4,0) -> 384 | H68: =VLOOKUP($B68,Сценарии!$C$5:$M$15,11,0)+VLOOKUP($C68,Сценарии!$C$5:$M$15,11,0) -> 7200 | I68: 2
B69: G | C69: U | D69: L | F69: =VLOOKUP($B69,Сценарии!$C$5:$M$15,2,0)+VLOOKUP($C69,Сценарии!$C$5:$M$15,2,0)+VLOOKUP($D69,Сценарии!$C$5:$M$15,2,0) -> 72 | G69: =VLOOKUP($B69,Сценарии!$C$5:$M$15,4,0)+VLOOKUP($C69,Сценарии!$C$5:$M$15,4,0)+VLOOKUP($D69,Сценарии!$C$5:$M$15,4,0) -> 1024 | H69: =VLOOKUP($B69,Сценарии!$C$5:$M$15,11,0)+VLOOKUP($C69,Сценарии!$C$5:$M$15,11,0)+VLOOKUP($D69,Сценарии!$C$5:$M$15,11,0) -> 7200 | I69: 3
B70: G | C70: U | D70: GU1 | F70: =VLOOKUP($B70,Сценарии!$C$5:$M$15,2,0)+VLOOKUP($C70,Сценарии!$C$5:$M$15,2,0)+VLOOKUP($D70,Сценарии!$C$5:$M$15,2,0) -> 84 | G70: =VLOOKUP($B70,Сценарии!$C$5:$M$15,4,0)+VLOOKUP($C70,Сценарии!$C$5:$M$15,4,0)+VLOOKUP($D70,Сценарии!$C$5:$M$15,4,0) -> 1792 | H70: =VLOOKUP($B70,Сценарии!$C$5:$M$15,11,0)+VLOOKUP($C70,Сценарии!$C$5:$M$15,11,0)+VLOOKUP($D70,Сценарии!$C$5:$M$15,11,0) -> 0 | I70: 3
B71: G | C71: U | D71: GU2 | F71: =VLOOKUP($B71,Сценарии!$C$5:$M$15,2,0)+VLOOKUP($C71,Сценарии!$C$5:$M$15,2,0)+VLOOKUP($D71,Сценарии!$C$5:$M$15,2,0) -> 96 | G71: =VLOOKUP($B71,Сценарии!$C$5:$M$15,4,0)+VLOOKUP($C71,Сценарии!$C$5:$M$15,4,0)+VLOOKUP($D71,Сценарии!$C$5:$M$15,4,0) -> 1664 | H71: =VLOOKUP($B71,Сценарии!$C$5:$M$15,11,0)+VLOOKUP($C71,Сценарии!$C$5:$M$15,11,0)+VLOOKUP($D71,Сценарии!$C$5:$M$15,11,0) -> 0 | I71: 3
B72: G | C72: U | D72: GU3 | F72: =VLOOKUP($B72,Сценарии!$C$5:$M$15,2,0)+VLOOKUP($C72,Сценарии!$C$5:$M$15,2,0)+VLOOKUP($D72,Сценарии!$C$5:$M$15,2,0) -> 108 | G72: =VLOOKUP($B72,Сценарии!$C$5:$M$15,4,0)+VLOOKUP($C72,Сценарии!$C$5:$M$15,4,0)+VLOOKUP($D72,Сценарии!$C$5:$M$15,4,0) -> 1536 | H72: =VLOOKUP($B72,Сценарии!$C$5:$M$15,11,0)+VLOOKUP($C72,Сценарии!$C$5:$M$15,11,0)+VLOOKUP($D72,Сценарии!$C$5:$M$15,11,0) -> 0 | I72: 3
B73: G | C73: U | D73: GU4 | F73: =VLOOKUP($B73,Сценарии!$C$5:$M$15,2,0)+VLOOKUP($C73,Сценарии!$C$5:$M$15,2,0)+VLOOKUP($D73,Сценарии!$C$5:$M$15,2,0) -> 120 | G73: =VLOOKUP($B73,Сценарии!$C$5:$M$15,4,0)+VLOOKUP($C73,Сценарии!$C$5:$M$15,4,0)+VLOOKUP($D73,Сценарии!$C$5:$M$15,4,0) -> 1280 | H73: =VLOOKUP($B73,Сценарии!$C$5:$M$15,11,0)+VLOOKUP($C73,Сценарии!$C$5:$M$15,11,0)+VLOOKUP($D73,Сценарии!$C$5:$M$15,11,0) -> 0 | I73: 3
B74: G | C74: U | D74: GL | F74: =VLOOKUP($B74,Сценарии!$C$5:$M$15,2,0)+VLOOKUP($C74,Сценарии!$C$5:$M$15,2,0)+VLOOKUP($D74,Сценарии!$C$5:$M$15,2,0) -> 108 | G74: =VLOOKUP($B74,Сценарии!$C$5:$M$15,4,0)+VLOOKUP($C74,Сценарии!$C$5:$M$15,4,0)+VLOOKUP($D74,Сценарии!$C$5:$M$15,4,0) -> 1024 | H74: =VLOOKUP($B74,Сценарии!$C$5:$M$15,11,0)+VLOOKUP($C74,Сценарии!$C$5:$M$15,11,0)+VLOOKUP($D74,Сценарии!$C$5:$M$15,11,0) -> 3600 | I74: 3
B75: G | C75: U | D75: UL | F75: =VLOOKUP($B75,Сценарии!$C$5:$M$15,2,0)+VLOOKUP($C75,Сценарии!$C$5:$M$15,2,0)+VLOOKUP($D75,Сценарии!$C$5:$M$15,2,0) -> 72 | G75: =VLOOKUP($B75,Сценарии!$C$5:$M$15,4,0)+VLOOKUP($C75,Сценарии!$C$5:$M$15,4,0)+VLOOKUP($D75,Сценарии!$C$5:$M$15,4,0) -> 1536 | H75: =VLOOKUP($B75,Сценарии!$C$5:$M$15,11,0)+VLOOKUP($C75,Сценарии!$C$5:$M$15,11,0)+VLOOKUP($D75,Сценарии!$C$5:$M$15,11,0) -> 3600 | I75: 3
B76: G | C76: U | D76: GUL1 | F76: =VLOOKUP($B76,Сценарии!$C$5:$M$15,2,0)+VLOOKUP($C76,Сценарии!$C$5:$M$15,2,0)+VLOOKUP($D76,Сценарии!$C$5:$M$15,2,0) -> 84 | G76: =VLOOKUP($B76,Сценарии!$C$5:$M$15,4,0)+VLOOKUP($C76,Сценарии!$C$5:$M$15,4,0)+VLOOKUP($D76,Сценарии!$C$5:$M$15,4,0) -> 1280 | H76: =VLOOKUP($B76,Сценарии!$C$5:$M$15,11,0)+VLOOKUP($C76,Сценарии!$C$5:$M$15,11,0)+VLOOKUP($D76,Сценарии!$C$5:$M$15,11,0) -> 3600 | I76: 3
B77: G | C77: U | D77: GUL2 | F77: =VLOOKUP($B77,Сценарии!$C$5:$M$15,2,0)+VLOOKUP($C77,Сценарии!$C$5:$M$15,2,0)+VLOOKUP($D77,Сценарии!$C$5:$M$15,2,0) -> 96 | G77: =VLOOKUP($B77,Сценарии!$C$5:$M$15,4,0)+VLOOKUP($C77,Сценарии!$C$5:$M$15,4,0)+VLOOKUP($D77,Сценарии!$C$5:$M$15,4,0) -> 1152 | H77: =VLOOKUP($B77,Сценарии!$C$5:$M$15,11,0)+VLOOKUP($C77,Сценарии!$C$5:$M$15,11,0)+VLOOKUP($D77,Сценарии!$C$5:$M$15,11,0) -> 3600 | I77: 3
B78: G | C78: L | D78: GU1 | F78: =VLOOKUP($B78,Сценарии!$C$5:$M$15,2,0)+VLOOKUP($C78,Сценарии!$C$5:$M$15,2,0)+VLOOKUP($D78,Сценарии!$C$5:$M$15,2,0) -> 84 | G78: =VLOOKUP($B78,Сценарии!$C$5:$M$15,4,0)+VLOOKUP($C78,Сценарии!$C$5:$M$15,4,0)+VLOOKUP($D78,Сценарии!$C$5:$M$15,4,0) -> 768 | H78: =VLOOKUP($B78,Сценарии!$C$5:$M$15,11,0)+VLOOKUP($C78,Сценарии!$C$5:$M$15,11,0)+VLOOKUP($D78,Сценарии!$C$5:$M$15,11,0) -> 7200 | I78: 3
B79: G | C79: L | D79: GU2 | F79: =VLOOKUP($B79,Сценарии!$C$5:$M$15,2,0)+VLOOKUP($C79,Сценарии!$C$5:$M$15,2,0)+VLOOKUP($D79,Сценарии!$C$5:$M$15,2,0) -> 96 | G79: =VLOOKUP($B79,Сценарии!$C$5:$M$15,4,0)+VLOOKUP($C79,Сценарии!$C$5:$M$15,4,0)+VLOOKUP($D79,Сценарии!$C$5:$M$15,4,0) -> 640 | H79: =VLOOKUP($B79,Сценарии!$C$5:$M$15,11,0)+VLOOKUP($C79,Сценарии!$C$5:$M$15,11,0)+VLOOKUP($D79,Сценарии!$C$5:$M$15,11,0) -> 7200 | I79: 3
B80: G | C80: L | D80: GU3 | F80: =VLOOKUP($B80,Сценарии!$C$5:$M$15,2,0)+VLOOKUP($C80,Сценарии!$C$5:$M$15,2,0)+VLOOKUP($D80,Сценарии!$C$5:$M$15,2,0) -> 108 | G80: =VLOOKUP($B80,Сценарии!$C$5:$M$15,4,0)+VLOOKUP($C80,Сценарии!$C$5:$M$15,4,0)+VLOOKUP($D80,Сценарии!$C$5:$M$15,4,0) -> 512 | H80: =VLOOKUP($B80,Сценарии!$C$5:$M$15,11,0)+VLOOKUP($C80,Сценарии!$C$5:$M$15,11,0)+VLOOKUP($D80,Сценарии!$C$5:$M$15,11,0) -> 7200 | I80: 3
B81: G | C81: L | D81: GU4 | F81: =VLOOKUP($B81,Сценарии!$C$5:$M$15,2,0)+VLOOKUP($C81,Сценарии!$C$5:$M$15,2,0)+VLOOKUP($D81,Сценарии!$C$5:$M$15,2,0) -> 120 | G81: =VLOOKUP($B81,Сценарии!$C$5:$M$15,4,0)+VLOOKUP($C81,Сценарии!$C$5:$M$15,4,0)+VLOOKUP($D81,Сценарии!$C$5:$M$15,4,0) -> 256 | H81: =VLOOKUP($B81,Сценарии!$C$5:$M$15,11,0)+VLOOKUP($C81,Сценарии!$C$5:$M$15,11,0)+VLOOKUP($D81,Сценарии!$C$5:$M$15,11,0) -> 7200 | I81: 3
B82: G | C82: L | D82: GL | F82: =VLOOKUP($B82,Сценарии!$C$5:$M$15,2,0)+VLOOKUP($C82,Сценарии!$C$5:$M$15,2,0)+VLOOKUP($D82,Сценарии!$C$5:$M$15,2,0) -> 108 | G82: =VLOOKUP($B82,Сценарии!$C$5:$M$15,4,0)+VLOOKUP($C82,Сценарии!$C$5:$M$15,4,0)+VLOOKUP($D82,Сценарии!$C$5:$M$15,4,0) -> 0 | H82: =VLOOKUP($B82,Сценарии!$C$5:$M$15,11,0)+VLOOKUP($C82,Сценарии!$C$5:$M$15,11,0)+VLOOKUP($D82,Сценарии!$C$5:$M$15,11,0) -> 10800 | I82: 3
B83: G | C83: L | D83: UL | F83: =VLOOKUP($B83,Сценарии!$C$5:$M$15,2,0)+VLOOKUP($C83,Сценарии!$C$5:$M$15,2,0)+VLOOKUP($D83,Сценарии!$C$5:$M$15,2,0) -> 72 | G83: =VLOOKUP($B83,Сценарии!$C$5:$M$15,4,0)+VLOOKUP($C83,Сценарии!$C$5:$M$15,4,0)+VLOOKUP($D83,Сценарии!$C$5:$M$15,4,0) -> 512 | H83: =VLOOKUP($B83,Сценарии!$C$5:$M$15,11,0)+VLOOKUP($C83,Сценарии!$C$5:$M$15,11,0)+VLOOKUP($D83,Сценарии!$C$5:$M$15,11,0) -> 10800 | I83: 3
B84: G | C84: L | D84: GUL1 | F84: =VLOOKUP($B84,Сценарии!$C$5:$M$15,2,0)+VLOOKUP($C84,Сценарии!$C$5:$M$15,2,0)+VLOOKUP($D84,Сценарии!$C$5:$M$15,2,0) -> 84 | G84: =VLOOKUP($B84,Сценарии!$C$5:$M$15,4,0)+VLOOKUP($C84,Сценарии!$C$5:$M$15,4,0)+VLOOKUP($D84,Сценарии!$C$5:$M$15,4,0) -> 256 | H84: =VLOOKUP($B84,Сценарии!$C$5:$M$15,11,0)+VLOOKUP($C84,Сценарии!$C$5:$M$15,11,0)+VLOOKUP($D84,Сценарии!$C$5:$M$15,11,0) -> 10800 | I84: 3
B85: G | C85: L | D85: GUL2 | F85: =VLOOKUP($B85,Сценарии!$C$5:$M$15,2,0)+VLOOKUP($C85,Сценарии!$C$5:$M$15,2,0)+VLOOKUP($D85,Сценарии!$C$5:$M$15,2,0) -> 96 | G85: =VLOOKUP($B85,Сценарии!$C$5:$M$15,4,0)+VLOOKUP($C85,Сценарии!$C$5:$M$15,4,0)+VLOOKUP($D85,Сценарии!$C$5:$M$15,4,0) -> 128 | H85: =VLOOKUP($B85,Сценарии!$C$5:$M$15,11,0)+VLOOKUP($C85,Сценарии!$C$5:$M$15,11,0)+VLOOKUP($D85,Сценарии!$C$5:$M$15,11,0) -> 10800 | I85: 3
B86: G | C86: GU1 | D86: GU2 | F86: =VLOOKUP($B86,Сценарии!$C$5:$M$15,2,0)+VLOOKUP($C86,Сценарии!$C$5:$M$15,2,0)+VLOOKUP($D86,Сценарии!$C$5:$M$15,2,0) -> 108 | G86: =VLOOKUP($B86,Сценарии!$C$5:$M$15,4,0)+VLOOKUP($C86,Сценарии!$C$5:$M$15,4,0)+VLOOKUP($D86,Сценарии!$C$5:$M$15,4,0) -> 1408 | H86: =VLOOKUP($B86,Сценарии!$C$5:$M$15,11,0)+VLOOKUP($C86,Сценарии!$C$5:$M$15,11,0)+VLOOKUP($D86,Сценарии!$C$5:$M$15,11,0) -> 0 | I86: 3
B87: G | C87: GU1 | D87: GU3 | F87: =VLOOKUP($B87,Сценарии!$C$5:$M$15,2,0)+VLOOKUP($C87,Сценарии!$C$5:$M$15,2,0)+VLOOKUP($D87,Сценарии!$C$5:$M$15,2,0) -> 120 | G87: =VLOOKUP($B87,Сценарии!$C$5:$M$15,4,0)+VLOOKUP($C87,Сценарии!$C$5:$M$15,4,0)+VLOOKUP($D87,Сценарии!$C$5:$M$15,4,0) -> 1280 | H87: =VLOOKUP($B87,Сценарии!$C$5:$M$15,11,0)+VLOOKUP($C87,Сценарии!$C$5:$M$15,11,0)+VLOOKUP($D87,Сценарии!$C$5:$M$15,11,0) -> 0 | I87: 3
B88: G | C88: GU1 | D88: GU4 | F88: =VLOOKUP($B88,Сценарии!$C$5:$M$15,2,0)+VLOOKUP($C88,Сценарии!$C$5:$M$15,2,0)+VLOOKUP($D88,Сценарии!$C$5:$M$15,2,0) -> 132 | G88: =VLOOKUP($B88,Сценарии!$C$5:$M$15,4,0)+VLOOKUP($C88,Сценарии!$C$5:$M$15,4,0)+VLOOKUP($D88,Сценарии!$C$5:$M$15,4,0) -> 1024 | H88: =VLOOKUP($B88,Сценарии!$C$5:$M$15,11,0)+VLOOKUP($C88,Сценарии!$C$5:$M$15,11,0)+VLOOKUP($D88,Сценарии!$C$5:$M$15,11,0) -> 0 | I88: 3
B89: G | C89: GU1 | D89: GL | F89: =VLOOKUP($B89,Сценарии!$C$5:$M$15,2,0)+VLOOKUP($C89,Сценарии!$C$5:$M$15,2,0)+VLOOKUP($D89,Сценарии!$C$5:$M$15,2,0) -> 120 | G89: =VLOOKUP($B89,Сценарии!$C$5:$M$15,4,0)+VLOOKUP($C89,Сценарии!$C$5:$M$15,4,0)+VLOOKUP($D89,Сценарии!$C$5:$M$15,4,0) -> 768 | H89: =VLOOKUP($B89,Сценарии!$C$5:$M$15,11,0)+VLOOKUP($C89,Сценарии!$C$5:$M$15,11,0)+VLOOKUP($D89,Сценарии!$C$5:$M$15,11,0) -> 3600 | I89: 3
B90: G | C90: GU1 | D90: UL | F90: =VLOOKUP($B90,Сценарии!$C$5:$M$15,2,0)+VLOOKUP($C90,Сценарии!$C$5:$M$15,2,0)+VLOOKUP($D90,Сценарии!$C$5:$M$15,2,0) -> 84 | G90: =VLOOKUP($B90,Сценарии!$C$5:$M$15,4,0)+VLOOKUP($C90,Сценарии!$C$5:$M$15,4,0)+VLOOKUP($D90,Сценарии!$C$5:$M$15,4,0) -> 1280 | H90: =VLOOKUP($B90,Сценарии!$C$5:$M$15,11,0)+VLOOKUP($C90,Сценарии!$C$5:$M$15,11,0)+VLOOKUP($D90,Сценарии!$C$5:$M$15,11,0) -> 3600 | I90: 3
B91: G | C91: GU1 | D91: GUL1 | F91: =VLOOKUP($B91,Сценарии!$C$5:$M$15,2,0)+VLOOKUP($C91,Сценарии!$C$5:$M$15,2,0)+VLOOKUP($D91,Сценарии!$C$5:$M$15,2,0) -> 96 | G91: =VLOOKUP($B91,Сценарии!$C$5:$M$15,4,0)+VLOOKUP($C91,Сценарии!$C$5:$M$15,4,0)+VLOOKUP($D91,Сценарии!$C$5:$M$15,4,0) -> 1024 | H91: =VLOOKUP($B91,Сценарии!$C$5:$M$15,11,0)+VLOOKUP($C91,Сценарии!$C$5:$M$15,11,0)+VLOOKUP($D91,Сценарии!$C$5:$M$15,11,0) -> 3600 | I91: 3
B92: G | C92: GU1 | D92: GUL2 | F92: =VLOOKUP($B92,Сценарии!$C$5:$M$15,2,0)+VLOOKUP($C92,Сценарии!$C$5:$M$15,2,0)+VLOOKUP($D92,Сценарии!$C$5:$M$15,2,0) -> 108 | G92: =VLOOKUP($B92,Сценарии!$C$5:$M$15,4,0)+VLOOKUP($C92,Сценарии!$C$5:$M$15,4,0)+VLOOKUP($D92,Сценарии!$C$5:$M$15,4,0) -> 896 | H92: =VLOOKUP($B92,Сценарии!$C$5:$M$15,11,0)+VLOOKUP($C92,Сценарии!$C$5:$M$15,11,0)+VLOOKUP($D92,Сценарии!$C$5:$M$15,11,0) -> 3600 | I92: 3
B93: G | C93: GU2 | D93: GU3 | F93: =VLOOKUP($B93,Сценарии!$C$5:$M$15,2,0)+VLOOKUP($C93,Сценарии!$C$5:$M$15,2,0)+VLOOKUP($D93,Сценарии!$C$5:$M$15,2,0) -> 132 | G93: =VLOOKUP($B93,Сценарии!$C$5:$M$15,4,0)+VLOOKUP($C93,Сценарии!$C$5:$M$15,4,0)+VLOOKUP($D93,Сценарии!$C$5:$M$15,4,0) -> 1152 | H93: =VLOOKUP($B93,Сценарии!$C$5:$M$15,11,0)+VLOOKUP($C93,Сценарии!$C$5:$M$15,11,0)+VLOOKUP($D93,Сценарии!$C$5:$M$15,11,0) -> 0 | I93: 3
B94: G | C94: GU2 | D94: GU4 | F94: =VLOOKUP($B94,Сценарии!$C$5:$M$15,2,0)+VLOOKUP($C94,Сценарии!$C$5:$M$15,2,0)+VLOOKUP($D94,Сценарии!$C$5:$M$15,2,0) -> 144 | G94: =VLOOKUP($B94,Сценарии!$C$5:$M$15,4,0)+VLOOKUP($C94,Сценарии!$C$5:$M$15,4,0)+VLOOKUP($D94,Сценарии!$C$5:$M$15,4,0) -> 896 | H94: =VLOOKUP($B94,Сценарии!$C$5:$M$15,11,0)+VLOOKUP($C94,Сценарии!$C$5:$M$15,11,0)+VLOOKUP($D94,Сценарии!$C$5:$M$15,11,0) -> 0 | I94: 3
B95: G | C95: GU2 | D95: GL | F95: =VLOOKUP($B95,Сценарии!$C$5:$M$15,2,0)+VLOOKUP($C95,Сценарии!$C$5:$M$15,2,0)+VLOOKUP($D95,Сценарии!$C$5:$M$15,2,0) -> 132 | G95: =VLOOKUP($B95,Сценарии!$C$5:$M$15,4,0)+VLOOKUP($C95,Сценарии!$C$5:$M$15,4,0)+VLOOKUP($D95,Сценарии!$C$5:$M$15,4,0) -> 640 | H95: =VLOOKUP($B95,Сценарии!$C$5:$M$15,11,0)+VLOOKUP($C95,Сценарии!$C$5:$M$15,11,0)+VLOOKUP($D95,Сценарии!$C$5:$M$15,11,0) -> 3600 | I95: 3
B96: G | C96: GU2 | D96: UL | F96: =VLOOKUP($B96,Сценарии!$C$5:$M$15,2,0)+VLOOKUP($C96,Сценарии!$C$5:$M$15,2,0)+VLOOKUP($D96,Сценарии!$C$5:$M$15,2,0) -> 96 | G96: =VLOOKUP($B96,Сценарии!$C$5:$M$15,4,0)+VLOOKUP($C96,Сценарии!$C$5:$M$15,4,0)+VLOOKUP($D96,Сценарии!$C$5:$M$15,4,0) -> 1152 | H96: =VLOOKUP($B96,Сценарии!$C$5:$M$15,11,0)+VLOOKUP($C96,Сценарии!$C$5:$M$15,11,0)+VLOOKUP($D96,Сценарии!$C$5:$M$15,11,0) -> 3600 | I96: 3
B97: G | C97: GU2 | D97: GUL1 | F97: =VLOOKUP($B97,Сценарии!$C$5:$M$15,2,0)+VLOOKUP($C97,Сценарии!$C$5:$M$15,2,0)+VLOOKUP($D97,Сценарии!$C$5:$M$15,2,0) -> 108 | G97: =VLOOKUP($B97,Сценарии!$C$5:$M$15,4,0)+VLOOKUP($C97,Сценарии!$C$5:$M$15,4,0)+VLOOKUP($D97,Сценарии!$C$5:$M$15,4,0) -> 896 | H97: =VLOOKUP($B97,Сценарии!$C$5:$M$15,11,0)+VLOOKUP($C97,Сценарии!$C$5:$M$15,11,0)+VLOOKUP($D97,Сценарии!$C$5:$M$15,11,0) -> 3600 | I97: 3
B98: G | C98: GU2 | D98: GUL2 | F98: =VLOOKUP($B98,Сценарии!$C$5:$M$15,2,0)+VLOOKUP($C98,Сценарии!$C$5:$M$15,2,0)+VLOOKUP($D98,Сценарии!$C$5:$M$15,2,0) -> 120 | G98: =VLOOKUP($B98,Сценарии!$C$5:$M$15,4,0)+VLOOKUP($C98,Сценарии!$C$5:$M$15,4,0)+VLOOKUP($D98,Сценарии!$C$5:$M$15,4,0) -> 768 | H98: =VLOOKUP($B98,Сценарии!$C$5:$M$15,11,0)+VLOOKUP($C98,Сценарии!$C$5:$M$15,11,0)+VLOOKUP($D98,Сценарии!$C$5:$M$15,11,0) -> 3600 | I98: 3
B99: G | C99: GU3 | D99: GU4 | F99: =VLOOKUP($B99,Сценарии!$C$5:$M$15,2,0)+VLOOKUP($C99,Сценарии!$C$5:$M$15,2,0)+VLOOKUP($D99,Сценарии!$C$5:$M$15,2,0) -> 156 | G99: =VLOOKUP($B99,Сценарии!$C$5:$M$15,4,0)+VLOOKUP($C99,Сценарии!$C$5:$M$15,4,0)+VLOOKUP($D99,Сценарии!$C$5:$M$15,4,0) -> 768 | H99: =VLOOKUP($B99,Сценарии!$C$5:$M$15,11,0)+VLOOKUP($C99,Сценарии!$C$5:$M$15,11,0)+VLOOKUP($D99,Сценарии!$C$5:$M$15,11,0) -> 0 | I99: 3
B100: G | C100: GU3 | D100: GL | F100: =VLOOKUP($B100,Сценарии!$C$5:$M$15,2,0)+VLOOKUP($C100,Сценарии!$C$5:$M$15,2,0)+VLOOKUP($D100,Сценарии!$C$5:$M$15,2,0) -> 144 | G100: =VLOOKUP($B100,Сценарии!$C$5:$M$15,4,0)+VLOOKUP($C100,Сценарии!$C$5:$M$15,4,0)+VLOOKUP($D100,Сценарии!$C$5:$M$15,4,0) -> 512 | H100: =VLOOKUP($B100,Сценарии!$C$5:$M$15,11,0)+VLOOKUP($C100,Сценарии!$C$5:$M$15,11,0)+VLOOKUP($D100,Сценарии!$C$5:$M$15,11,0) -> 3600 | I100: 3
B101: G | C101: GU3 | D101: UL | F101: =VLOOKUP($B101,Сценарии!$C$5:$M$15,2,0)+VLOOKUP($C101,Сценарии!$C$5:$M$15,2,0)+VLOOKUP($D101,Сценарии!$C$5:$M$15,2,0) -> 108 | G101: =VLOOKUP($B101,Сценарии!$C$5:$M$15,4,0)+VLOOKUP($C101,Сценарии!$C$5:$M$15,4,0)+VLOOKUP($D101,Сценарии!$C$5:$M$15,4,0) -> 1024 | H101: =VLOOKUP($B101,Сценарии!$C$5:$M$15,11,0)+VLOOKUP($C101,Сценарии!$C$5:$M$15,11,0)+VLOOKUP($D101,Сценарии!$C$5:$M$15,11,0) -> 3600 | I101: 3
B102: G | C102: GU3 | D102: GUL1 | F102: =VLOOKUP($B102,Сценарии!$C$5:$M$15,2,0)+VLOOKUP($C102,Сценарии!$C$5:$M$15,2,0)+VLOOKUP($D102,Сценарии!$C$5:$M$15,2,0) -> 120 | G102: =VLOOKUP($B102,Сценарии!$C$5:$M$15,4,0)+VLOOKUP($C102,Сценарии!$C$5:$M$15,4,0)+VLOOKUP($D102,Сценарии!$C$5:$M$15,4,0) -> 768 | H102: =VLOOKUP($B102,Сценарии!$C$5:$M$15,11,0)+VLOOKUP($C102,Сценарии!$C$5:$M$15,11,0)+VLOOKUP($D102,Сценарии!$C$5:$M$15,11,0) -> 3600 | I102: 3
B103: G | C103: GU3 | D103: GUL2 | F103: =VLOOKUP($B103,Сценарии!$C$5:$M$15,2,0)+VLOOKUP($C103,Сценарии!$C$5:$M$15,2,0)+VLOOKUP($D103,Сценарии!$C$5:$M$15,2,0) -> 132 | G103: =VLOOKUP($B103,Сценарии!$C$5:$M$15,4,0)+VLOOKUP($C103,Сценарии!$C$5:$M$15,4,0)+VLOOKUP($D103,Сценарии!$C$5:$M$15,4,0) -> 640 | H103: =VLOOKUP($B103,Сценарии!$C$5:$M$15,11,0)+VLOOKUP($C103,Сценарии!$C$5:$M$15,11,0)+VLOOKUP($D103,Сценарии!$C$5:$M$15,11,0) -> 3600 | I103: 3
B104: G | C104: GU4 | D104: GL | F104: =VLOOKUP($B104,Сценарии!$C$5:$M$15,2,0)+VLOOKUP($C104,Сценарии!$C$5:$M$15,2,0)+VLOOKUP($D104,Сценарии!$C$5:$M$15,2,0) -> 156 | G104: =VLOOKUP($B104,Сценарии!$C$5:$M$15,4,0)+VLOOKUP($C104,Сценарии!$C$5:$M$15,4,0)+VLOOKUP($D104,Сценарии!$C$5:$M$15,4,0) -> 256 | H104: =VLOOKUP($B104,Сценарии!$C$5:$M$15,11,0)+VLOOKUP($C104,Сценарии!$C$5:$M$15,11,0)+VLOOKUP($D104,Сценарии!$C$5:$M$15,11,0) -> 3600 | I104: 3
B105: G | C105: GU4 | D105: UL | F105: =VLOOKUP($B105,Сценарии!$C$5:$M$15,2,0)+VLOOKUP($C105,Сценарии!$C$5:$M$15,2,0)+VLOOKUP($D105,Сценарии!$C$5:$M$15,2,0) -> 120 | G105: =VLOOKUP($B105,Сценарии!$C$5:$M$15,4,0)+VLOOKUP($C105,Сценарии!$C$5:$M$15,4,0)+VLOOKUP($D105,Сценарии!$C$5:$M$15,4,0) -> 768 | H105: =VLOOKUP($B105,Сценарии!$C$5:$M$15,11,0)+VLOOKUP($C105,Сценарии!$C$5:$M$15,11,0)+VLOOKUP($D105,Сценарии!$C$5:$M$15,11,0) -> 3600 | I105: 3
B106: G | C106: GU4 | D106: GUL1 | F106: =VLOOKUP($B106,Сценарии!$C$5:$M$15,2,0)+VLOOKUP($C106,Сценарии!$C$5:$M$15,2,0)+VLOOKUP($D106,Сценарии!$C$5:$M$15,2,0) -> 132 | G106: =VLOOKUP($B106,Сценарии!$C$5:$M$15,4,0)+VLOOKUP($C106,Сценарии!$C$5:$M$15,4,0)+VLOOKUP($D106,Сценарии!$C$5:$M$15,4,0) -> 512 | H106: =VLOOKUP($B106,Сценарии!$C$5:$M$15,11,0)+VLOOKUP($C106,Сценарии!$C$5:$M$15,11,0)+VLOOKUP($D106,Сценарии!$C$5:$M$15,11,0) -> 3600 | I106: 3
B107: G | C107: GU4 | D107: GUL2 | F107: =VLOOKUP($B107,Сценарии!$C$5:$M$15,2,0)+VLOOKUP($C107,Сценарии!$C$5:$M$15,2,0)+VLOOKUP($D107,Сценарии!$C$5:$M$15,2,0) -> 144 | G107: =VLOOKUP($B107,Сценарии!$C$5:$M$15,4,0)+VLOOKUP($C107,Сценарии!$C$5:$M$15,4,0)+VLOOKUP($D107,Сценарии!$C$5:$M$15,4,0) -> 384 | H107: =VLOOKUP($B107,Сценарии!$C$5:$M$15,11,0)+VLOOKUP($C107,Сценарии!$C$5:$M$15,11,0)+VLOOKUP($D107,Сценарии!$C$5:$M$15,11,0) -> 3600 | I107: 3
B108: G | C108: GL | D108: UL | F108: =VLOOKUP($B108,Сценарии!$C$5:$M$15,2,0)+VLOOKUP($C108,Сценарии!$C$5:$M$15,2,0)+VLOOKUP($D108,Сценарии!$C$5:$M$15,2,0) -> 108 | G108: =VLOOKUP($B108,Сценарии!$C$5:$M$15,4,0)+VLOOKUP($C108,Сценарии!$C$5:$M$15,4,0)+VLOOKUP($D108,Сценарии!$C$5:$M$15,4,0) -> 512 | H108: =VLOOKUP($B108,Сценарии!$C$5:$M$15,11,0)+VLOOKUP($C108,Сценарии!$C$5:$M$15,11,0)+VLOOKUP($D108,Сценарии!$C$5:$M$15,11,0) -> 7200 | I108: 3
B109: G | C109: GL | D109: GUL1 | F109: =VLOOKUP($B109,Сценарии!$C$5:$M$15,2,0)+VLOOKUP($C109,Сценарии!$C$5:$M$15,2,0)+VLOOKUP($D109,Сценарии!$C$5:$M$15,2,0) -> 120 | G109: =VLOOKUP($B109,Сценарии!$C$5:$M$15,4,0)+VLOOKUP($C109,Сценарии!$C$5:$M$15,4,0)+VLOOKUP($D109,Сценарии!$C$5:$M$15,4,0) -> 256 | H109: =VLOOKUP($B109,Сценарии!$C$5:$M$15,11,0)+VLOOKUP($C109,Сценарии!$C$5:$M$15,11,0)+VLOOKUP($D109,Сценарии!$C$5:$M$15,11,0) -> 7200 | I109: 3
B110: G | C110: GL | D110: GUL2 | F110: =VLOOKUP($B110,Сценарии!$C$5:$M$15,2,0)+VLOOKUP($C110,Сценарии!$C$5:$M$15,2,0)+VLOOKUP($D110,Сценарии!$C$5:$M$15,2,0) -> 132 | G110: =VLOOKUP($B110,Сценарии!$C$5:$M$15,4,0)+VLOOKUP($C110,Сценарии!$C$5:$M$15,4,0)+VLOOKUP($D110,Сценарии!$C$5:$M$15,4,0) -> 128 | H110: =VLOOKUP($B110,Сценарии!$C$5:$M$15,11,0)+VLOOKUP($C110,Сценарии!$C$5:$M$15,11,0)+VLOOKUP($D110,Сценарии!$C$5:$M$15,11,0) -> 7200 | I110: 3
B111: G | C111: UL | D111: GUL1 | F111: =VLOOKUP($B111,Сценарии!$C$5:$M$15,2,0)+VLOOKUP($C111,Сценарии!$C$5:$M$15,2,0)+VLOOKUP($D111,Сценарии!$C$5:$M$15,2,0) -> 84 | G111: =VLOOKUP($B111,Сценарии!$C$5:$M$15,4,0)+VLOOKUP($C111,Сценарии!$C$5:$M$15,4,0)+VLOOKUP($D111,Сценарии!$C$5:$M$15,4,0) -> 768 | H111: =VLOOKUP($B111,Сценарии!$C$5:$M$15,11,0)+VLOOKUP($C111,Сценарии!$C$5:$M$15,11,0)+VLOOKUP($D111,Сценарии!$C$5:$M$15,11,0) -> 7200 | I111: 3
B112: G | C112: UL | D112: GUL2 | F112: =VLOOKUP($B112,Сценарии!$C$5:$M$15,2,0)+VLOOKUP($C112,Сценарии!$C$5:$M$15,2,0)+VLOOKUP($D112,Сценарии!$C$5:$M$15,2,0) -> 96 | G112: =VLOOKUP($B112,Сценарии!$C$5:$M$15,4,0)+VLOOKUP($C112,Сценарии!$C$5:$M$15,4,0)+VLOOKUP($D112,Сценарии!$C$5:$M$15,4,0) -> 640 | H112: =VLOOKUP($B112,Сценарии!$C$5:$M$15,11,0)+VLOOKUP($C112,Сценарии!$C$5:$M$15,11,0)+VLOOKUP($D112,Сценарии!$C$5:$M$15,11,0) -> 7200 | I112: 3
B113: G | C113: GUL1 | D113: GUL2 | F113: =VLOOKUP($B113,Сценарии!$C$5:$M$15,2,0)+VLOOKUP($C113,Сценарии!$C$5:$M$15,2,0)+VLOOKUP($D113,Сценарии!$C$5:$M$15,2,0) -> 108 | G113: =VLOOKUP($B113,Сценарии!$C$5:$M$15,4,0)+VLOOKUP($C113,Сценарии!$C$5:$M$15,4,0)+VLOOKUP($D113,Сценарии!$C$5:$M$15,4,0) -> 384 | H113: =VLOOKUP($B113,Сценарии!$C$5:$M$15,11,0)+VLOOKUP($C113,Сценарии!$C$5:$M$15,11,0)+VLOOKUP($D113,Сценарии!$C$5:$M$15,11,0) -> 7200 | I113: 3
B114: U | C114: L | D114: GU1 | F114: =VLOOKUP($B114,Сценарии!$C$5:$M$15,2,0)+VLOOKUP($C114,Сценарии!$C$5:$M$15,2,0)+VLOOKUP($D114,Сценарии!$C$5:$M$15,2,0) -> 12 | G114: =VLOOKUP($B114,Сценарии!$C$5:$M$15,4,0)+VLOOKUP($C114,Сценарии!$C$5:$M$15,4,0)+VLOOKUP($D114,Сценарии!$C$5:$M$15,4,0) -> 1792 | H114: =VLOOKUP($B114,Сценарии!$C$5:$M$15,11,0)+VLOOKUP($C114,Сценарии!$C$5:$M$15,11,0)+VLOOKUP($D114,Сценарии!$C$5:$M$15,11,0) -> 7200 | I114: 3
B115: U | C115: L | D115: GU2 | F115: =VLOOKUP($B115,Сценарии!$C$5:$M$15,2,0)+VLOOKUP($C115,Сценарии!$C$5:$M$15,2,0)+VLOOKUP($D115,Сценарии!$C$5:$M$15,2,0) -> 24 | G115: =VLOOKUP($B115,Сценарии!$C$5:$M$15,4,0)+VLOOKUP($C115,Сценарии!$C$5:$M$15,4,0)+VLOOKUP($D115,Сценарии!$C$5:$M$15,4,0) -> 1664 | H115: =VLOOKUP($B115,Сценарии!$C$5:$M$15,11,0)+VLOOKUP($C115,Сценарии!$C$5:$M$15,11,0)+VLOOKUP($D115,Сценарии!$C$5:$M$15,11,0) -> 7200 | I115: 3
B116: U | C116: L | D116: GU3 | F116: =VLOOKUP($B116,Сценарии!$C$5:$M$15,2,0)+VLOOKUP($C116,Сценарии!$C$5:$M$15,2,0)+VLOOKUP($D116,Сценарии!$C$5:$M$15,2,0) -> 36 | G116: =VLOOKUP($B116,Сценарии!$C$5:$M$15,4,0)+VLOOKUP($C116,Сценарии!$C$5:$M$15,4,0)+VLOOKUP($D116,Сценарии!$C$5:$M$15,4,0) -> 1536 | H116: =VLOOKUP($B116,Сценарии!$C$5:$M$15,11,0)+VLOOKUP($C116,Сценарии!$C$5:$M$15,11,0)+VLOOKUP($D116,Сценарии!$C$5:$M$15,11,0) -> 7200 | I116: 3
B117: U | C117: L | D117: GU4 | F117: =VLOOKUP($B117,Сценарии!$C$5:$M$15,2,0)+VLOOKUP($C117,Сценарии!$C$5:$M$15,2,0)+VLOOKUP($D117,Сценарии!$C$5:$M$15,2,0) -> 48 | G117: =VLOOKUP($B117,Сценарии!$C$5:$M$15,4,0)+VLOOKUP($C117,Сценарии!$C$5:$M$15,4,0)+VLOOKUP($D117,Сценарии!$C$5:$M$15,4,0) -> 1280 | H117: =VLOOKUP($B117,Сценарии!$C$5:$M$15,11,0)+VLOOKUP($C117,Сценарии!$C$5:$M$15,11,0)+VLOOKUP($D117,Сценарии!$C$5:$M$15,11,0) -> 7200 | I117: 3
B118: U | C118: L | D118: GL | F118: =VLOOKUP($B118,Сценарии!$C$5:$M$15,2,0)+VLOOKUP($C118,Сценарии!$C$5:$M$15,2,0)+VLOOKUP($D118,Сценарии!$C$5:$M$15,2,0) -> 36 | G118: =VLOOKUP($B118,Сценарии!$C$5:$M$15,4,0)+VLOOKUP($C118,Сценарии!$C$5:$M$15,4,0)+VLOOKUP($D118,Сценарии!$C$5:$M$15,4,0) -> 1024 | H118: =VLOOKUP($B118,Сценарии!$C$5:$M$15,11,0)+VLOOKUP($C118,Сценарии!$C$5:$M$15,11,0)+VLOOKUP($D118,Сценарии!$C$5:$M$15,11,0) -> 10800 | I118: 3
B119: U | C119: L | D119: UL | F119: =VLOOKUP($B119,Сценарии!$C$5:$M$15,2,0)+VLOOKUP($C119,Сценарии!$C$5:$M$15,2,0)+VLOOKUP($D119,Сценарии!$C$5:$M$15,2,0) -> 0 | G119: =VLOOKUP($B119,Сценарии!$C$5:$M$15,4,0)+VLOOKUP($C119,Сценарии!$C$5:$M$15,4,0)+VLOOKUP($D119,Сценарии!$C$5:$M$15,4,0) -> 1536 | H119: =VLOOKUP($B119,Сценарии!$C$5:$M$15,11,0)+VLOOKUP($C119,Сценарии!$C$5:$M$15,11,0)+VLOOKUP($D119,Сценарии!$C$5:$M$15,11,0) -> 10800 | I119: 3
B120: U | C120: L | D120: GUL1 | F120: =VLOOKUP($B120,Сценарии!$C$5:$M$15,2,0)+VLOOKUP($C120,Сценарии!$C$5:$M$15,2,0)+VLOOKUP($D120,Сценарии!$C$5:$M$15,2,0) -> 12 | G120: =VLOOKUP($B120,Сценарии!$C$5:$M$15,4,0)+VLOOKUP($C120,Сценарии!$C$5:$M$15,4,0)+VLOOKUP($D120,Сценарии!$C$5:$M$15,4,0) -> 1280 | H120: =VLOOKUP($B120,Сценарии!$C$5:$M$15,11,0)+VLOOKUP($C120,Сценарии!$C$5:$M$15,11,0)+VLOOKUP($D120,Сценарии!$C$5:$M$15,11,0) -> 10800 | I120: 3
B121: U | C121: L | D121: GUL2 | F121: =VLOOKUP($B121,Сценарии!$C$5:$M$15,2,0)+VLOOKUP($C121,Сценарии!$C$5:$M$15,2,0)+VLOOKUP($D121,Сценарии!$C$5:$M$15,2,0) -> 24 | G121: =VLOOKUP($B121,Сценарии!$C$5:$M$15,4,0)+VLOOKUP($C121,Сценарии!$C$5:$M$15,4,0)+VLOOKUP($D121,Сценарии!$C$5:$M$15,4,0) -> 1152 | H121: =VLOOKUP($B121,Сценарии!$C$5:$M$15,11,0)+VLOOKUP($C121,Сценарии!$C$5:$M$15,11,0)+VLOOKUP($D121,Сценарии!$C$5:$M$15,11,0) -> 10800 | I121: 3
B122: U | C122: GU1 | D122: GU2 | F122: =VLOOKUP($B122,Сценарии!$C$5:$M$15,2,0)+VLOOKUP($C122,Сценарии!$C$5:$M$15,2,0)+VLOOKUP($D122,Сценарии!$C$5:$M$15,2,0) -> 36 | G122: =VLOOKUP($B122,Сценарии!$C$5:$M$15,4,0)+VLOOKUP($C122,Сценарии!$C$5:$M$15,4,0)+VLOOKUP($D122,Сценарии!$C$5:$M$15,4,0) -> 2432 | H122: =VLOOKUP($B122,Сценарии!$C$5:$M$15,11,0)+VLOOKUP($C122,Сценарии!$C$5:$M$15,11,0)+VLOOKUP($D122,Сценарии!$C$5:$M$15,11,0) -> 0 | I122: 3
B123: U | C123: GU1 | D123: GU3 | F123: =VLOOKUP($B123,Сценарии!$C$5:$M$15,2,0)+VLOOKUP($C123,Сценарии!$C$5:$M$15,2,0)+VLOOKUP($D123,Сценарии!$C$5:$M$15,2,0) -> 48 | G123: =VLOOKUP($B123,Сценарии!$C$5:$M$15,4,0)+VLOOKUP($C123,Сценарии!$C$5:$M$15,4,0)+VLOOKUP($D123,Сценарии!$C$5:$M$15,4,0) -> 2304 | H123: =VLOOKUP($B123,Сценарии!$C$5:$M$15,11,0)+VLOOKUP($C123,Сценарии!$C$5:$M$15,11,0)+VLOOKUP($D123,Сценарии!$C$5:$M$15,11,0) -> 0 | I123: 3
B124: U | C124: GU1 | D124: GU4 | F124: =VLOOKUP($B124,Сценарии!$C$5:$M$15,2,0)+VLOOKUP($C124,Сценарии!$C$5:$M$15,2,0)+VLOOKUP($D124,Сценарии!$C$5:$M$15,2,0) -> 60 | G124: =VLOOKUP($B124,Сценарии!$C$5:$M$15,4,0)+VLOOKUP($C124,Сценарии!$C$5:$M$15,4,0)+VLOOKUP($D124,Сценарии!$C$5:$M$15,4,0) -> 2048 | H124: =VLOOKUP($B124,Сценарии!$C$5:$M$15,11,0)+VLOOKUP($C124,Сценарии!$C$5:$M$15,11,0)+VLOOKUP($D124,Сценарии!$C$5:$M$15,11,0) -> 0 | I124: 3
B125: U | C125: GU1 | D125: GL | F125: =VLOOKUP($B125,Сценарии!$C$5:$M$15,2,0)+VLOOKUP($C125,Сценарии!$C$5:$M$15,2,0)+VLOOKUP($D125,Сценарии!$C$5:$M$15,2,0) -> 48 | G125: =VLOOKUP($B125,Сценарии!$C$5:$M$15,4,0)+VLOOKUP($C125,Сценарии!$C$5:$M$15,4,0)+VLOOKUP($D125,Сценарии!$C$5:$M$15,4,0) -> 1792 | H125: =VLOOKUP($B125,Сценарии!$C$5:$M$15,11,0)+VLOOKUP($C125,Сценарии!$C$5:$M$15,11,0)+VLOOKUP($D125,Сценарии!$C$5:$M$15,11,0) -> 3600 | I125: 3
B126: U | C126: GU1 | D126: UL | F126: =VLOOKUP($B126,Сценарии!$C$5:$M$15,2,0)+VLOOKUP($C126,Сценарии!$C$5:$M$15,2,0)+VLOOKUP($D126,Сценарии!$C$5:$M$15,2,0) -> 12 | G126: =VLOOKUP($B126,Сценарии!$C$5:$M$15,4,0)+VLOOKUP($C126,Сценарии!$C$5:$M$15,4,0)+VLOOKUP($D126,Сценарии!$C$5:$M$15,4,0) -> 2304 | H126: =VLOOKUP($B126,Сценарии!$C$5:$M$15,11,0)+VLOOKUP($C126,Сценарии!$C$5:$M$15,11,0)+VLOOKUP($D126,Сценарии!$C$5:$M$15,11,0) -> 3600 | I126: 3
B127: U | C127: GU1 | D127: GUL1 | F127: =VLOOKUP($B127,Сценарии!$C$5:$M$15,2,0)+VLOOKUP($C127,Сценарии!$C$5:$M$15,2,0)+VLOOKUP($D127,Сценарии!$C$5:$M$15,2,0) -> 24 | G127: =VLOOKUP($B127,Сценарии!$C$5:$M$15,4,0)+VLOOKUP($C127,Сценарии!$C$5:$M$15,4,0)+VLOOKUP($D127,Сценарии!$C$5:$M$15,4,0) -> 2048 | H127: =VLOOKUP($B127,Сценарии!$C$5:$M$15,11,0)+VLOOKUP($C127,Сценарии!$C$5:$M$15,11,0)+VLOOKUP($D127,Сценарии!$C$5:$M$15,11,0) -> 3600 | I127: 3
B128: U | C128: GU1 | D128: GUL2 | F128: =VLOOKUP($B128,Сценарии!$C$5:$M$15,2,0)+VLOOKUP($C128,Сценарии!$C$5:$M$15,2,0)+VLOOKUP($D128,Сценарии!$C$5:$M$15,2,0) -> 36 | G128: =VLOOKUP($B128,Сценарии!$C$5:$M$15,4,0)+VLOOKUP($C128,Сценарии!$C$5:$M$15,4,0)+VLOOKUP($D128,Сценарии!$C$5:$M$15,4,0) -> 1920 | H128: =VLOOKUP($B128,Сценарии!$C$5:$M$15,11,0)+VLOOKUP($C128,Сценарии!$C$5:$M$15,11,0)+VLOOKUP($D128,Сценарии!$C$5:$M$15,11,0) -> 3600 | I128: 3
B129: U | C129: GU2 | D129: GU3 | F129: =VLOOKUP($B129,Сценарии!$C$5:$M$15,2,0)+VLOOKUP($C129,Сценарии!$C$5:$M$15,2,0)+VLOOKUP($D129,Сценарии!$C$5:$M$15,2,0) -> 60 | G129: =VLOOKUP($B129,Сценарии!$C$5:$M$15,4,0)+VLOOKUP($C129,Сценарии!$C$5:$M$15,4,0)+VLOOKUP($D129,Сценарии!$C$5:$M$15,4,0) -> 2176 | H129: =VLOOKUP($B129,Сценарии!$C$5:$M$15,11,0)+VLOOKUP($C129,Сценарии!$C$5:$M$15,11,0)+VLOOKUP($D129,Сценарии!$C$5:$M$15,11,0) -> 0 | I129: 3
B130: U | C130: GU2 | D130: GU4 | F130: =VLOOKUP($B130,Сценарии!$C$5:$M$15,2,0)+VLOOKUP($C130,Сценарии!$C$5:$M$15,2,0)+VLOOKUP($D130,Сценарии!$C$5:$M$15,2,0) -> 72 | G130: =VLOOKUP($B130,Сценарии!$C$5:$M$15,4,0)+VLOOKUP($C130,Сценарии!$C$5:$M$15,4,0)+VLOOKUP($D130,Сценарии!$C$5:$M$15,4,0) -> 1920 | H130: =VLOOKUP($B130,Сценарии!$C$5:$M$15,11,0)+VLOOKUP($C130,Сценарии!$C$5:$M$15,11,0)+VLOOKUP($D130,Сценарии!$C$5:$M$15,11,0) -> 0 | I130: 3
B131: U | C131: GU2 | D131: GL | F131: =VLOOKUP($B131,Сценарии!$C$5:$M$15,2,0)+VLOOKUP($C131,Сценарии!$C$5:$M$15,2,0)+VLOOKUP($D131,Сценарии!$C$5:$M$15,2,0) -> 60 | G131: =VLOOKUP($B131,Сценарии!$C$5:$M$15,4,0)+VLOOKUP($C131,Сценарии!$C$5:$M$15,4,0)+VLOOKUP($D131,Сценарии!$C$5:$M$15,4,0) -> 1664 | H131: =VLOOKUP($B131,Сценарии!$C$5:$M$15,11,0)+VLOOKUP($C131,Сценарии!$C$5:$M$15,11,0)+VLOOKUP($D131,Сценарии!$C$5:$M$15,11,0) -> 3600 | I131: =COUNTA(B131,C131,D131,E131) -> 3
B132: U | C132: GU2 | D132: UL | F132: =VLOOKUP($B132,Сценарии!$C$5:$M$15,2,0)+VLOOKUP($C132,Сценарии!$C$5:$M$15,2,0)+VLOOKUP($D132,Сценарии!$C$5:$M$15,2,0) -> 24 | G132: =VLOOKUP($B132,Сценарии!$C$5:$M$15,4,0)+VLOOKUP($C132,Сценарии!$C$5:$M$15,4,0)+VLOOKUP($D132,Сценарии!$C$5:$M$15,4,0) -> 2176 | H132: =VLOOKUP($B132,Сценарии!$C$5:$M$15,11,0)+VLOOKUP($C132,Сценарии!$C$5:$M$15,11,0)+VLOOKUP($D132,Сценарии!$C$5:$M$15,11,0) -> 3600 | I132: 3
B133: U | C133: GU2 | D133: GUL1 | F133: =VLOOKUP($B133,Сценарии!$C$5:$M$15,2,0)+VLOOKUP($C133,Сценарии!$C$5:$M$15,2,0)+VLOOKUP($D133,Сценарии!$C$5:$M$15,2,0) -> 36 | G133: =VLOOKUP($B133,Сценарии!$C$5:$M$15,4,0)+VLOOKUP($C133,Сценарии!$C$5:$M$15,4,0)+VLOOKUP($D133,Сценарии!$C$5:$M$15,4,0) -> 1920 | H133: =VLOOKUP($B133,Сценарии!$C$5:$M$15,11,0)+VLOOKUP($C133,Сценарии!$C$5:$M$15,11,0)+VLOOKUP($D133,Сценарии!$C$5:$M$15,11,0) -> 3600 | I133: 3
B134: U | C134: GU2 | D134: GUL2 | F134: =VLOOKUP($B134,Сценарии!$C$5:$M$15,2,0)+VLOOKUP($C134,Сценарии!$C$5:$M$15,2,0)+VLOOKUP($D134,Сценарии!$C$5:$M$15,2,0) -> 48 | G134: =VLOOKUP($B134,Сценарии!$C$5:$M$15,4,0)+VLOOKUP($C134,Сценарии!$C$5:$M$15,4,0)+VLOOKUP($D134,Сценарии!$C$5:$M$15,4,0) -> 1792 | H134: =VLOOKUP($B134,Сценарии!$C$5:$M$15,11,0)+VLOOKUP($C134,Сценарии!$C$5:$M$15,11,0)+VLOOKUP($D134,Сценарии!$C$5:$M$15,11,0) -> 3600 | I134: 3
B135: U | C135: GU3 | D135: GU4 | F135: =VLOOKUP($B135,Сценарии!$C$5:$M$15,2,0)+VLOOKUP($C135,Сценарии!$C$5:$M$15,2,0)+VLOOKUP($D135,Сценарии!$C$5:$M$15,2,0) -> 84 | G135: =VLOOKUP($B135,Сценарии!$C$5:$M$15,4,0)+VLOOKUP($C135,Сценарии!$C$5:$M$15,4,0)+VLOOKUP($D135,Сценарии!$C$5:$M$15,4,0) -> 1792 | H135: =VLOOKUP($B135,Сценарии!$C$5:$M$15,11,0)+VLOOKUP($C135,Сценарии!$C$5:$M$15,11,0)+VLOOKUP($D135,Сценарии!$C$5:$M$15,11,0) -> 0 | I135: 3
B136: U | C136: GU3 | D136: GL | F136: =VLOOKUP($B136,Сценарии!$C$5:$M$15,2,0)+VLOOKUP($C136,Сценарии!$C$5:$M$15,2,0)+VLOOKUP($D136,Сценарии!$C$5:$M$15,2,0) -> 72 | G136: =VLOOKUP($B136,Сценарии!$C$5:$M$15,4,0)+VLOOKUP($C136,Сценарии!$C$5:$M$15,4,0)+VLOOKUP($D136,Сценарии!$C$5:$M$15,4,0) -> 1536 | H136: =VLOOKUP($B136,Сценарии!$C$5:$M$15,11,0)+VLOOKUP($C136,Сценарии!$C$5:$M$15,11,0)+VLOOKUP($D136,Сценарии!$C$5:$M$15,11,0) -> 3600 | I136: 3
B137: U | C137: GU3 | D137: UL | F137: =VLOOKUP($B137,Сценарии!$C$5:$M$15,2,0)+VLOOKUP($C137,Сценарии!$C$5:$M$15,2,0)+VLOOKUP($D137,Сценарии!$C$5:$M$15,2,0) -> 36 | G137: =VLOOKUP($B137,Сценарии!$C$5:$M$15,4,0)+VLOOKUP($C137,Сценарии!$C$5:$M$15,4,0)+VLOOKUP($D137,Сценарии!$C$5:$M$15,4,0) -> 2048 | H137: =VLOOKUP($B137,Сценарии!$C$5:$M$15,11,0)+VLOOKUP($C137,Сценарии!$C$5:$M$15,11,0)+VLOOKUP($D137,Сценарии!$C$5:$M$15,11,0) -> 3600 | I137: 3
B138: U | C138: GU3 | D138: GUL1 | F138: =VLOOKUP($B138,Сценарии!$C$5:$M$15,2,0)+VLOOKUP($C138,Сценарии!$C$5:$M$15,2,0)+VLOOKUP($D138,Сценарии!$C$5:$M$15,2,0) -> 48 | G138: =VLOOKUP($B138,Сценарии!$C$5:$M$15,4,0)+VLOOKUP($C138,Сценарии!$C$5:$M$15,4,0)+VLOOKUP($D138,Сценарии!$C$5:$M$15,4,0) -> 1792 | H138: =VLOOKUP($B138,Сценарии!$C$5:$M$15,11,0)+VLOOKUP($C138,Сценарии!$C$5:$M$15,11,0)+VLOOKUP($D138,Сценарии!$C$5:$M$15,11,0) -> 3600 | I138: 3
B139: U | C139: GU3 | D139: GUL2 | F139: =VLOOKUP($B139,Сценарии!$C$5:$M$15,2,0)+VLOOKUP($C139,Сценарии!$C$5:$M$15,2,0)+VLOOKUP($D139,Сценарии!$C$5:$M$15,2,0) -> 60 | G139: =VLOOKUP($B139,Сценарии!$C$5:$M$15,4,0)+VLOOKUP($C139,Сценарии!$C$5:$M$15,4,0)+VLOOKUP($D139,Сценарии!$C$5:$M$15,4,0) -> 1664 | H139: =VLOOKUP($B139,Сценарии!$C$5:$M$15,11,0)+VLOOKUP($C139,Сценарии!$C$5:$M$15,11,0)+VLOOKUP($D139,Сценарии!$C$5:$M$15,11,0) -> 3600 | I139: 3
B140: U | C140: GU4 | D140: GL | F140: =VLOOKUP($B140,Сценарии!$C$5:$M$15,2,0)+VLOOKUP($C140,Сценарии!$C$5:$M$15,2,0)+VLOOKUP($D140,Сценарии!$C$5:$M$15,2,0) -> 84 | G140: =VLOOKUP($B140,Сценарии!$C$5:$M$15,4,0)+VLOOKUP($C140,Сценарии!$C$5:$M$15,4,0)+VLOOKUP($D140,Сценарии!$C$5:$M$15,4,0) -> 1280 | H140: =VLOOKUP($B140,Сценарии!$C$5:$M$15,11,0)+VLOOKUP($C140,Сценарии!$C$5:$M$15,11,0)+VLOOKUP($D140,Сценарии!$C$5:$M$15,11,0) -> 3600 | I140: 3
B141: U | C141: GU4 | D141: UL | F141: =VLOOKUP($B141,Сценарии!$C$5:$M$15,2,0)+VLOOKUP($C141,Сценарии!$C$5:$M$15,2,0)+VLOOKUP($D141,Сценарии!$C$5:$M$15,2,0) -> 48 | G141: =VLOOKUP($B141,Сценарии!$C$5:$M$15,4,0)+VLOOKUP($C141,Сценарии!$C$5:$M$15,4,0)+VLOOKUP($D141,Сценарии!$C$5:$M$15,4,0) -> 1792 | H141: =VLOOKUP($B141,Сценарии!$C$5:$M$15,11,0)+VLOOKUP($C141,Сценарии!$C$5:$M$15,11,0)+VLOOKUP($D141,Сценарии!$C$5:$M$15,11,0) -> 3600 | I141: 3
B142: U | C142: GU4 | D142: GUL1 | F142: =VLOOKUP($B142,Сценарии!$C$5:$M$15,2,0)+VLOOKUP($C142,Сценарии!$C$5:$M$15,2,0)+VLOOKUP($D142,Сценарии!$C$5:$M$15,2,0) -> 60 | G142: =VLOOKUP($B142,Сценарии!$C$5:$M$15,4,0)+VLOOKUP($C142,Сценарии!$C$5:$M$15,4,0)+VLOOKUP($D142,Сценарии!$C$5:$M$15,4,0) -> 1536 | H142: =VLOOKUP($B142,Сценарии!$C$5:$M$15,11,0)+VLOOKUP($C142,Сценарии!$C$5:$M$15,11,0)+VLOOKUP($D142,Сценарии!$C$5:$M$15,11,0) -> 3600 | I142: 3
B143: U | C143: GU4 | D143: GUL2 | F143: =VLOOKUP($B143,Сценарии!$C$5:$M$15,2,0)+VLOOKUP($C143,Сценарии!$C$5:$M$15,2,0)+VLOOKUP($D143,Сценарии!$C$5:$M$15,2,0) -> 72 | G143: =VLOOKUP($B143,Сценарии!$C$5:$M$15,4,0)+VLOOKUP($C143,Сценарии!$C$5:$M$15,4,0)+VLOOKUP($D143,Сценарии!$C$5:$M$15,4,0) -> 1408 | H143: =VLOOKUP($B143,Сценарии!$C$5:$M$15,11,0)+VLOOKUP($C143,Сценарии!$C$5:$M$15,11,0)+VLOOKUP($D143,Сценарии!$C$5:$M$15,11,0) -> 3600 | I143: 3
B144: U | C144: GL | D144: UL | F144: =VLOOKUP($B144,Сценарии!$C$5:$M$15,2,0)+VLOOKUP($C144,Сценарии!$C$5:$M$15,2,0)+VLOOKUP($D144,Сценарии!$C$5:$M$15,2,0) -> 36 | G144: =VLOOKUP($B144,Сценарии!$C$5:$M$15,4,0)+VLOOKUP($C144,Сценарии!$C$5:$M$15,4,0)+VLOOKUP($D144,Сценарии!$C$5:$M$15,4,0) -> 1536 | H144: =VLOOKUP($B144,Сценарии!$C$5:$M$15,11,0)+VLOOKUP($C144,Сценарии!$C$5:$M$15,11,0)+VLOOKUP($D144,Сценарии!$C$5:$M$15,11,0) -> 7200 | I144: 3
B145: U | C145: GL | D145: GUL1 | F145: =VLOOKUP($B145,Сценарии!$C$5:$M$15,2,0)+VLOOKUP($C145,Сценарии!$C$5:$M$15,2,0)+VLOOKUP($D145,Сценарии!$C$5:$M$15,2,0) -> 48 | G145: =VLOOKUP($B145,Сценарии!$C$5:$M$15,4,0)+VLOOKUP($C145,Сценарии!$C$5:$M$15,4,0)+VLOOKUP($D145,Сценарии!$C$5:$M$15,4,0) -> 1280 | H145: =VLOOKUP($B145,Сценарии!$C$5:$M$15,11,0)+VLOOKUP($C145,Сценарии!$C$5:$M$15,11,0)+VLOOKUP($D145,Сценарии!$C$5:$M$15,11,0) -> 7200 | I145: 3
B146: U | C146: GL | D146: GUL2 | F146: =VLOOKUP($B146,Сценарии!$C$5:$M$15,2,0)+VLOOKUP($C146,Сценарии!$C$5:$M$15,2,0)+VLOOKUP($D146,Сценарии!$C$5:$M$15,2,0) -> 60 | G146: =VLOOKUP($B146,Сценарии!$C$5:$M$15,4,0)+VLOOKUP($C146,Сценарии!$C$5:$M$15,4,0)+VLOOKUP($D146,Сценарии!$C$5:$M$15,4,0) -> 1152 | H146: =VLOOKUP($B146,Сценарии!$C$5:$M$15,11,0)+VLOOKUP($C146,Сценарии!$C$5:$M$15,11,0)+VLOOKUP($D146,Сценарии!$C$5:$M$15,11,0) -> 7200 | I146: 3
B147: U | C147: UL | D147: GUL1 | F147: =VLOOKUP($B147,Сценарии!$C$5:$M$15,2,0)+VLOOKUP($C147,Сценарии!$C$5:$M$15,2,0)+VLOOKUP($D147,Сценарии!$C$5:$M$15,2,0) -> 12 | G147: =VLOOKUP($B147,Сценарии!$C$5:$M$15,4,0)+VLOOKUP($C147,Сценарии!$C$5:$M$15,4,0)+VLOOKUP($D147,Сценарии!$C$5:$M$15,4,0) -> 1792 | H147: =VLOOKUP($B147,Сценарии!$C$5:$M$15,11,0)+VLOOKUP($C147,Сценарии!$C$5:$M$15,11,0)+VLOOKUP($D147,Сценарии!$C$5:$M$15,11,0) -> 7200 | I147: 3
B148: U | C148: UL | D148: GUL2 | F148: =VLOOKUP($B148,Сценарии!$C$5:$M$15,2,0)+VLOOKUP($C148,Сценарии!$C$5:$M$15,2,0)+VLOOKUP($D148,Сценарии!$C$5:$M$15,2,0) -> 24 | G148: =VLOOKUP($B148,Сценарии!$C$5:$M$15,4,0)+VLOOKUP($C148,Сценарии!$C$5:$M$15,4,0)+VLOOKUP($D148,Сценарии!$C$5:$M$15,4,0) -> 1664 | H148: =VLOOKUP($B148,Сценарии!$C$5:$M$15,11,0)+VLOOKUP($C148,Сценарии!$C$5:$M$15,11,0)+VLOOKUP($D148,Сценарии!$C$5:$M$15,11,0) -> 7200 | I148: 3
B149: U | C149: GUL1 | D149: GUL2 | F149: =VLOOKUP($B149,Сценарии!$C$5:$M$15,2,0)+VLOOKUP($C149,Сценарии!$C$5:$M$15,2,0)+VLOOKUP($D149,Сценарии!$C$5:$M$15,2,0) -> 36 | G149: =VLOOKUP($B149,Сценарии!$C$5:$M$15,4,0)+VLOOKUP($C149,Сценарии!$C$5:$M$15,4,0)+VLOOKUP($D149,Сценарии!$C$5:$M$15,4,0) -> 1408 | H149: =VLOOKUP($B149,Сценарии!$C$5:$M$15,11,0)+VLOOKUP($C149,Сценарии!$C$5:$M$15,11,0)+VLOOKUP($D149,Сценарии!$C$5:$M$15,11,0) -> 7200 | I149: 3
B150: L | C150: GU1 | D150: GU2 | F150: =VLOOKUP($B150,Сценарии!$C$5:$M$15,2,0)+VLOOKUP($C150,Сценарии!$C$5:$M$15,2,0)+VLOOKUP($D150,Сценарии!$C$5:$M$15,2,0) -> 36 | G150: =VLOOKUP($B150,Сценарии!$C$5:$M$15,4,0)+VLOOKUP($C150,Сценарии!$C$5:$M$15,4,0)+VLOOKUP($D150,Сценарии!$C$5:$M$15,4,0) -> 1408 | H150: =VLOOKUP($B150,Сценарии!$C$5:$M$15,11,0)+VLOOKUP($C150,Сценарии!$C$5:$M$15,11,0)+VLOOKUP($D150,Сценарии!$C$5:$M$15,11,0) -> 7200 | I150: 3
B151: L | C151: GU1 | D151: GU3 | F151: =VLOOKUP($B151,Сценарии!$C$5:$M$15,2,0)+VLOOKUP($C151,Сценарии!$C$5:$M$15,2,0)+VLOOKUP($D151,Сценарии!$C$5:$M$15,2,0) -> 48 | G151: =VLOOKUP($B151,Сценарии!$C$5:$M$15,4,0)+VLOOKUP($C151,Сценарии!$C$5:$M$15,4,0)+VLOOKUP($D151,Сценарии!$C$5:$M$15,4,0) -> 1280 | H151: =VLOOKUP($B151,Сценарии!$C$5:$M$15,11,0)+VLOOKUP($C151,Сценарии!$C$5:$M$15,11,0)+VLOOKUP($D151,Сценарии!$C$5:$M$15,11,0) -> 7200 | I151: 3
B152: L | C152: GU1 | D152: GU4 | F152: =VLOOKUP($B152,Сценарии!$C$5:$M$15,2,0)+VLOOKUP($C152,Сценарии!$C$5:$M$15,2,0)+VLOOKUP($D152,Сценарии!$C$5:$M$15,2,0) -> 60 | G152: =VLOOKUP($B152,Сценарии!$C$5:$M$15,4,0)+VLOOKUP($C152,Сценарии!$C$5:$M$15,4,0)+VLOOKUP($D152,Сценарии!$C$5:$M$15,4,0) -> 1024 | H152: =VLOOKUP($B152,Сценарии!$C$5:$M$15,11,0)+VLOOKUP($C152,Сценарии!$C$5:$M$15,11,0)+VLOOKUP($D152,Сценарии!$C$5:$M$15,11,0) -> 7200 | I152: 3
B153: L | C153: GU1 | D153: GL | F153: =VLOOKUP($B153,Сценарии!$C$5:$M$15,2,0)+VLOOKUP($C153,Сценарии!$C$5:$M$15,2,0)+VLOOKUP($D153,Сценарии!$C$5:$M$15,2,0) -> 48 | G153: =VLOOKUP($B153,Сценарии!$C$5:$M$15,4,0)+VLOOKUP($C153,Сценарии!$C$5:$M$15,4,0)+VLOOKUP($D153,Сценарии!$C$5:$M$15,4,0) -> 768 | H153: =VLOOKUP($B153,Сценарии!$C$5:$M$15,11,0)+VLOOKUP($C153,Сценарии!$C$5:$M$15,11,0)+VLOOKUP($D153,Сценарии!$C$5:$M$15,11,0) -> 10800 | I153: 3
B154: L | C154: GU1 | D154: UL | F154: =VLOOKUP($B154,Сценарии!$C$5:$M$15,2,0)+VLOOKUP($C154,Сценарии!$C$5:$M$15,2,0)+VLOOKUP($D154,Сценарии!$C$5:$M$15,2,0) -> 12 | G154: =VLOOKUP($B154,Сценарии!$C$5:$M$15,4,0)+VLOOKUP($C154,Сценарии!$C$5:$M$15,4,0)+VLOOKUP($D154,Сценарии!$C$5:$M$15,4,0) -> 1280 | H154: =VLOOKUP($B154,Сценарии!$C$5:$M$15,11,0)+VLOOKUP($C154,Сценарии!$C$5:$M$15,11,0)+VLOOKUP($D154,Сценарии!$C$5:$M$15,11,0) -> 10800 | I154: 3
B155: L | C155: GU1 | D155: GUL1 | F155: =VLOOKUP($B155,Сценарии!$C$5:$M$15,2,0)+VLOOKUP($C155,Сценарии!$C$5:$M$15,2,0)+VLOOKUP($D155,Сценарии!$C$5:$M$15,2,0) -> 24 | G155: =VLOOKUP($B155,Сценарии!$C$5:$M$15,4,0)+VLOOKUP($C155,Сценарии!$C$5:$M$15,4,0)+VLOOKUP($D155,Сценарии!$C$5:$M$15,4,0) -> 1024 | H155: =VLOOKUP($B155,Сценарии!$C$5:$M$15,11,0)+VLOOKUP($C155,Сценарии!$C$5:$M$15,11,0)+VLOOKUP($D155,Сценарии!$C$5:$M$15,11,0) -> 10800 | I155: 3
B156: L | C156: GU1 | D156: GUL2 | F156: =VLOOKUP($B156,Сценарии!$C$5:$M$15,2,0)+VLOOKUP($C156,Сценарии!$C$5:$M$15,2,0)+VLOOKUP($D156,Сценарии!$C$5:$M$15,2,0) -> 36 | G156: =VLOOKUP($B156,Сценарии!$C$5:$M$15,4,0)+VLOOKUP($C156,Сценарии!$C$5:$M$15,4,0)+VLOOKUP($D156,Сценарии!$C$5:$M$15,4,0) -> 896 | H156: =VLOOKUP($B156,Сценарии!$C$5:$M$15,11,0)+VLOOKUP($C156,Сценарии!$C$5:$M$15,11,0)+VLOOKUP($D156,Сценарии!$C$5:$M$15,11,0) -> 10800 | I156: 3
B157: L | C157: GU2 | D157: GU3 | F157: =VLOOKUP($B157,Сценарии!$C$5:$M$15,2,0)+VLOOKUP($C157,Сценарии!$C$5:$M$15,2,0)+VLOOKUP($D157,Сценарии!$C$5:$M$15,2,0) -> 60 | G157: =VLOOKUP($B157,Сценарии!$C$5:$M$15,4,0)+VLOOKUP($C157,Сценарии!$C$5:$M$15,4,0)+VLOOKUP($D157,Сценарии!$C$5:$M$15,4,0) -> 1152 | H157: =VLOOKUP($B157,Сценарии!$C$5:$M$15,11,0)+VLOOKUP($C157,Сценарии!$C$5:$M$15,11,0)+VLOOKUP($D157,Сценарии!$C$5:$M$15,11,0) -> 7200 | I157: 3
B158: L | C158: GU2 | D158: GU4 | F158: =VLOOKUP($B158,Сценарии!$C$5:$M$15,2,0)+VLOOKUP($C158,Сценарии!$C$5:$M$15,2,0)+VLOOKUP($D158,Сценарии!$C$5:$M$15,2,0) -> 72 | G158: =VLOOKUP($B158,Сценарии!$C$5:$M$15,4,0)+VLOOKUP($C158,Сценарии!$C$5:$M$15,4,0)+VLOOKUP($D158,Сценарии!$C$5:$M$15,4,0) -> 896 | H158: =VLOOKUP($B158,Сценарии!$C$5:$M$15,11,0)+VLOOKUP($C158,Сценарии!$C$5:$M$15,11,0)+VLOOKUP($D158,Сценарии!$C$5:$M$15,11,0) -> 7200 | I158: 3
B159: L | C159: GU2 | D159: GL | F159: =VLOOKUP($B159,Сценарии!$C$5:$M$15,2,0)+VLOOKUP($C159,Сценарии!$C$5:$M$15,2,0)+VLOOKUP($D159,Сценарии!$C$5:$M$15,2,0) -> 60 | G159: =VLOOKUP($B159,Сценарии!$C$5:$M$15,4,0)+VLOOKUP($C159,Сценарии!$C$5:$M$15,4,0)+VLOOKUP($D159,Сценарии!$C$5:$M$15,4,0) -> 640 | H159: =VLOOKUP($B159,Сценарии!$C$5:$M$15,11,0)+VLOOKUP($C159,Сценарии!$C$5:$M$15,11,0)+VLOOKUP($D159,Сценарии!$C$5:$M$15,11,0) -> 10800 | I159: 3
B160: L | C160: GU2 | D160: UL | F160: =VLOOKUP($B160,Сценарии!$C$5:$M$15,2,0)+VLOOKUP($C160,Сценарии!$C$5:$M$15,2,0)+VLOOKUP($D160,Сценарии!$C$5:$M$15,2,0) -> 24 | G160: =VLOOKUP($B160,Сценарии!$C$5:$M$15,4,0)+VLOOKUP($C160,Сценарии!$C$5:$M$15,4,0)+VLOOKUP($D160,Сценарии!$C$5:$M$15,4,0) -> 1152 | H160: =VLOOKUP($B160,Сценарии!$C$5:$M$15,11,0)+VLOOKUP($C160,Сценарии!$C$5:$M$15,11,0)+VLOOKUP($D160,Сценарии!$C$5:$M$15,11,0) -> 10800 | I160: 3
B161: L | C161: GU2 | D161: GUL1 | F161: =VLOOKUP($B161,Сценарии!$C$5:$M$15,2,0)+VLOOKUP($C161,Сценарии!$C$5:$M$15,2,0)+VLOOKUP($D161,Сценарии!$C$5:$M$15,2,0) -> 36 | G161: =VLOOKUP($B161,Сценарии!$C$5:$M$15,4,0)+VLOOKUP($C161,Сценарии!$C$5:$M$15,4,0)+VLOOKUP($D161,Сценарии!$C$5:$M$15,4,0) -> 896 | H161: =VLOOKUP($B161,Сценарии!$C$5:$M$15,11,0)+VLOOKUP($C161,Сценарии!$C$5:$M$15,11,0)+VLOOKUP($D161,Сценарии!$C$5:$M$15,11,0) -> 10800 | I161: 3
B162: L | C162: GU2 | D162: GUL2 | F162: =VLOOKUP($B162,Сценарии!$C$5:$M$15,2,0)+VLOOKUP($C162,Сценарии!$C$5:$M$15,2,0)+VLOOKUP($D162,Сценарии!$C$5:$M$15,2,0) -> 48 | G162: =VLOOKUP($B162,Сценарии!$C$5:$M$15,4,0)+VLOOKUP($C162,Сценарии!$C$5:$M$15,4,0)+VLOOKUP($D162,Сценарии!$C$5:$M$15,4,0) -> 768 | H162: =VLOOKUP($B162,Сценарии!$C$5:$M$15,11,0)+VLOOKUP($C162,Сценарии!$C$5:$M$15,11,0)+VLOOKUP($D162,Сценарии!$C$5:$M$15,11,0) -> 10800 | I162: 3
B163: L | C163: GU3 | D163: GU4 | F163: =VLOOKUP($B163,Сценарии!$C$5:$M$15,2,0)+VLOOKUP($C163,Сценарии!$C$5:$M$15,2,0)+VLOOKUP($D163,Сценарии!$C$5:$M$15,2,0) -> 84 | G163: =VLOOKUP($B163,Сценарии!$C$5:$M$15,4,0)+VLOOKUP($C163,Сценарии!$C$5:$M$15,4,0)+VLOOKUP($D163,Сценарии!$C$5:$M$15,4,0) -> 768 | H163: =VLOOKUP($B163,Сценарии!$C$5:$M$15,11,0)+VLOOKUP($C163,Сценарии!$C$5:$M$15,11,0)+VLOOKUP($D163,Сценарии!$C$5:$M$15,11,0) -> 7200 | I163: 3
B164: L | C164: GU3 | D164: GL | F164: =VLOOKUP($B164,Сценарии!$C$5:$M$15,2,0)+VLOOKUP($C164,Сценарии!$C$5:$M$15,2,0)+VLOOKUP($D164,Сценарии!$C$5:$M$15,2,0) -> 72 | G164: =VLOOKUP($B164,Сценарии!$C$5:$M$15,4,0)+VLOOKUP($C164,Сценарии!$C$5:$M$15,4,0)+VLOOKUP($D164,Сценарии!$C$5:$M$15,4,0) -> 512 | H164: =VLOOKUP($B164,Сценарии!$C$5:$M$15,11,0)+VLOOKUP($C164,Сценарии!$C$5:$M$15,11,0)+VLOOKUP($D164,Сценарии!$C$5:$M$15,11,0) -> 10800 | I164: 3
B165: L | C165: GU3 | D165: UL | F165: =VLOOKUP($B165,Сценарии!$C$5:$M$15,2,0)+VLOOKUP($C165,Сценарии!$C$5:$M$15,2,0)+VLOOKUP($D165,Сценарии!$C$5:$M$15,2,0) -> 36 | G165: =VLOOKUP($B165,Сценарии!$C$5:$M$15,4,0)+VLOOKUP($C165,Сценарии!$C$5:$M$15,4,0)+VLOOKUP($D165,Сценарии!$C$5:$M$15,4,0) -> 1024 | H165: =VLOOKUP($B165,Сценарии!$C$5:$M$15,11,0)+VLOOKUP($C165,Сценарии!$C$5:$M$15,11,0)+VLOOKUP($D165,Сценарии!$C$5:$M$15,11,0) -> 10800 | I165: 3
B166: L | C166: GU3 | D166: GUL1 | F166: =VLOOKUP($B166,Сценарии!$C$5:$M$15,2,0)+VLOOKUP($C166,Сценарии!$C$5:$M$15,2,0)+VLOOKUP($D166,Сценарии!$C$5:$M$15,2,0) -> 48 | G166: =VLOOKUP($B166,Сценарии!$C$5:$M$15,4,0)+VLOOKUP($C166,Сценарии!$C$5:$M$15,4,0)+VLOOKUP($D166,Сценарии!$C$5:$M$15,4,0) -> 768 | H166: =VLOOKUP($B166,Сценарии!$C$5:$M$15,11,0)+VLOOKUP($C166,Сценарии!$C$5:$M$15,11,0)+VLOOKUP($D166,Сценарии!$C$5:$M$15,11,0) -> 10800 | I166: 3
B167: L | C167: GU3 | D167: GUL2 | F167: =VLOOKUP($B167,Сценарии!$C$5:$M$15,2,0)+VLOOKUP($C167,Сценарии!$C$5:$M$15,2,0)+VLOOKUP($D167,Сценарии!$C$5:$M$15,2,0) -> 60 | G167: =VLOOKUP($B167,Сценарии!$C$5:$M$15,4,0)+VLOOKUP($C167,Сценарии!$C$5:$M$15,4,0)+VLOOKUP($D167,Сценарии!$C$5:$M$15,4,0) -> 640 | H167: =VLOOKUP($B167,Сценарии!$C$5:$M$15,11,0)+VLOOKUP($C167,Сценарии!$C$5:$M$15,11,0)+VLOOKUP($D167,Сценарии!$C$5:$M$15,11,0) -> 10800 | I167: 3
B168: L | C168: GU4 | D168: GL | F168: =VLOOKUP($B168,Сценарии!$C$5:$M$15,2,0)+VLOOKUP($C168,Сценарии!$C$5:$M$15,2,0)+VLOOKUP($D168,Сценарии!$C$5:$M$15,2,0) -> 84 | G168: =VLOOKUP($B168,Сценарии!$C$5:$M$15,4,0)+VLOOKUP($C168,Сценарии!$C$5:$M$15,4,0)+VLOOKUP($D168,Сценарии!$C$5:$M$15,4,0) -> 256 | H168: =VLOOKUP($B168,Сценарии!$C$5:$M$15,11,0)+VLOOKUP($C168,Сценарии!$C$5:$M$15,11,0)+VLOOKUP($D168,Сценарии!$C$5:$M$15,11,0) -> 10800 | I168: 3
B169: L | C169: GU4 | D169: UL | F169: =VLOOKUP($B169,Сценарии!$C$5:$M$15,2,0)+VLOOKUP($C169,Сценарии!$C$5:$M$15,2,0)+VLOOKUP($D169,Сценарии!$C$5:$M$15,2,0) -> 48 | G169: =VLOOKUP($B169,Сценарии!$C$5:$M$15,4,0)+VLOOKUP($C169,Сценарии!$C$5:$M$15,4,0)+VLOOKUP($D169,Сценарии!$C$5:$M$15,4,0) -> 768 | H169: =VLOOKUP($B169,Сценарии!$C$5:$M$15,11,0)+VLOOKUP($C169,Сценарии!$C$5:$M$15,11,0)+VLOOKUP($D169,Сценарии!$C$5:$M$15,11,0) -> 10800 | I169: 3
B170: L | C170: GU4 | D170: GUL1 | F170: =VLOOKUP($B170,Сценарии!$C$5:$M$15,2,0)+VLOOKUP($C170,Сценарии!$C$5:$M$15,2,0)+VLOOKUP($D170,Сценарии!$C$5:$M$15,2,0) -> 60 | G170: =VLOOKUP($B170,Сценарии!$C$5:$M$15,4,0)+VLOOKUP($C170,Сценарии!$C$5:$M$15,4,0)+VLOOKUP($D170,Сценарии!$C$5:$M$15,4,0) -> 512 | H170: =VLOOKUP($B170,Сценарии!$C$5:$M$15,11,0)+VLOOKUP($C170,Сценарии!$C$5:$M$15,11,0)+VLOOKUP($D170,Сценарии!$C$5:$M$15,11,0) -> 10800 | I170: 3
B171: L | C171: GU4 | D171: GUL2 | F171: =VLOOKUP($B171,Сценарии!$C$5:$M$15,2,0)+VLOOKUP($C171,Сценарии!$C$5:$M$15,2,0)+VLOOKUP($D171,Сценарии!$C$5:$M$15,2,0) -> 72 | G171: =VLOOKUP($B171,Сценарии!$C$5:$M$15,4,0)+VLOOKUP($C171,Сценарии!$C$5:$M$15,4,0)+VLOOKUP($D171,Сценарии!$C$5:$M$15,4,0) -> 384 | H171: =VLOOKUP($B171,Сценарии!$C$5:$M$15,11,0)+VLOOKUP($C171,Сценарии!$C$5:$M$15,11,0)+VLOOKUP($D171,Сценарии!$C$5:$M$15,11,0) -> 10800 | I171: 3
B172: L | C172: GL | D172: UL | F172: =VLOOKUP($B172,Сценарии!$C$5:$M$15,2,0)+VLOOKUP($C172,Сценарии!$C$5:$M$15,2,0)+VLOOKUP($D172,Сценарии!$C$5:$M$15,2,0) -> 36 | G172: =VLOOKUP($B172,Сценарии!$C$5:$M$15,4,0)+VLOOKUP($C172,Сценарии!$C$5:$M$15,4,0)+VLOOKUP($D172,Сценарии!$C$5:$M$15,4,0) -> 512 | H172: =VLOOKUP($B172,Сценарии!$C$5:$M$15,11,0)+VLOOKUP($C172,Сценарии!$C$5:$M$15,11,0)+VLOOKUP($D172,Сценарии!$C$5:$M$15,11,0) -> 14400 | I172: 3
B173: L | C173: GL | D173: GUL1 | F173: =VLOOKUP($B173,Сценарии!$C$5:$M$15,2,0)+VLOOKUP($C173,Сценарии!$C$5:$M$15,2,0)+VLOOKUP($D173,Сценарии!$C$5:$M$15,2,0) -> 48 | G173: =VLOOKUP($B173,Сценарии!$C$5:$M$15,4,0)+VLOOKUP($C173,Сценарии!$C$5:$M$15,4,0)+VLOOKUP($D173,Сценарии!$C$5:$M$15,4,0) -> 256 | H173: =VLOOKUP($B173,Сценарии!$C$5:$M$15,11,0)+VLOOKUP($C173,Сценарии!$C$5:$M$15,11,0)+VLOOKUP($D173,Сценарии!$C$5:$M$15,11,0) -> 14400 | I173: 3
B174: L | C174: GL | D174: GUL2 | F174: =VLOOKUP($B174,Сценарии!$C$5:$M$15,2,0)+VLOOKUP($C174,Сценарии!$C$5:$M$15,2,0)+VLOOKUP($D174,Сценарии!$C$5:$M$15,2,0) -> 60 | G174: =VLOOKUP($B174,Сценарии!$C$5:$M$15,4,0)+VLOOKUP($C174,Сценарии!$C$5:$M$15,4,0)+VLOOKUP($D174,Сценарии!$C$5:$M$15,4,0) -> 128 | H174: =VLOOKUP($B174,Сценарии!$C$5:$M$15,11,0)+VLOOKUP($C174,Сценарии!$C$5:$M$15,11,0)+VLOOKUP($D174,Сценарии!$C$5:$M$15,11,0) -> 14400 | I174: 3
B175: L | C175: UL | D175: GUL1 | F175: =VLOOKUP($B175,Сценарии!$C$5:$M$15,2,0)+VLOOKUP($C175,Сценарии!$C$5:$M$15,2,0)+VLOOKUP($D175,Сценарии!$C$5:$M$15,2,0) -> 12 | G175: =VLOOKUP($B175,Сценарии!$C$5:$M$15,4,0)+VLOOKUP($C175,Сценарии!$C$5:$M$15,4,0)+VLOOKUP($D175,Сценарии!$C$5:$M$15,4,0) -> 768 | H175: =VLOOKUP($B175,Сценарии!$C$5:$M$15,11,0)+VLOOKUP($C175,Сценарии!$C$5:$M$15,11,0)+VLOOKUP($D175,Сценарии!$C$5:$M$15,11,0) -> 14400 | I175: 3
B176: L | C176: UL | D176: GUL2 | F176: =VLOOKUP($B176,Сценарии!$C$5:$M$15,2,0)+VLOOKUP($C176,Сценарии!$C$5:$M$15,2,0)+VLOOKUP($D176,Сценарии!$C$5:$M$15,2,0) -> 24 | G176: =VLOOKUP($B176,Сценарии!$C$5:$M$15,4,0)+VLOOKUP($C176,Сценарии!$C$5:$M$15,4,0)+VLOOKUP($D176,Сценарии!$C$5:$M$15,4,0) -> 640 | H176: =VLOOKUP($B176,Сценарии!$C$5:$M$15,11,0)+VLOOKUP($C176,Сценарии!$C$5:$M$15,11,0)+VLOOKUP($D176,Сценарии!$C$5:$M$15,11,0) -> 14400 | I176: 3
B177: L | C177: GUL1 | D177: GUL2 | F177: =VLOOKUP($B177,Сценарии!$C$5:$M$15,2,0)+VLOOKUP($C177,Сценарии!$C$5:$M$15,2,0)+VLOOKUP($D177,Сценарии!$C$5:$M$15,2,0) -> 36 | G177: =VLOOKUP($B177,Сценарии!$C$5:$M$15,4,0)+VLOOKUP($C177,Сценарии!$C$5:$M$15,4,0)+VLOOKUP($D177,Сценарии!$C$5:$M$15,4,0) -> 384 | H177: =VLOOKUP($B177,Сценарии!$C$5:$M$15,11,0)+VLOOKUP($C177,Сценарии!$C$5:$M$15,11,0)+VLOOKUP($D177,Сценарии!$C$5:$M$15,11,0) -> 14400 | I177: 3
B178: GU1 | C178: GU2 | D178: GU3 | F178: =VLOOKUP($B178,Сценарии!$C$5:$M$15,2,0)+VLOOKUP($C178,Сценарии!$C$5:$M$15,2,0)+VLOOKUP($D178,Сценарии!$C$5:$M$15,2,0) -> 72 | G178: =VLOOKUP($B178,Сценарии!$C$5:$M$15,4,0)+VLOOKUP($C178,Сценарии!$C$5:$M$15,4,0)+VLOOKUP($D178,Сценарии!$C$5:$M$15,4,0) -> 1920 | H178: =VLOOKUP($B178,Сценарии!$C$5:$M$15,11,0)+VLOOKUP($C178,Сценарии!$C$5:$M$15,11,0)+VLOOKUP($D178,Сценарии!$C$5:$M$15,11,0) -> 0 | I178: 3
B179: GU1 | C179: GU2 | D179: GU4 | F179: =VLOOKUP($B179,Сценарии!$C$5:$M$15,2,0)+VLOOKUP($C179,Сценарии!$C$5:$M$15,2,0)+VLOOKUP($D179,Сценарии!$C$5:$M$15,2,0) -> 84 | G179: =VLOOKUP($B179,Сценарии!$C$5:$M$15,4,0)+VLOOKUP($C179,Сценарии!$C$5:$M$15,4,0)+VLOOKUP($D179,Сценарии!$C$5:$M$15,4,0) -> 1664 | H179: =VLOOKUP($B179,Сценарии!$C$5:$M$15,11,0)+VLOOKUP($C179,Сценарии!$C$5:$M$15,11,0)+VLOOKUP($D179,Сценарии!$C$5:$M$15,11,0) -> 0 | I179: 3
B180: GU1 | C180: GU2 | D180: GL | F180: =VLOOKUP($B180,Сценарии!$C$5:$M$15,2,0)+VLOOKUP($C180,Сценарии!$C$5:$M$15,2,0)+VLOOKUP($D180,Сценарии!$C$5:$M$15,2,0) -> 72 | G180: =VLOOKUP($B180,Сценарии!$C$5:$M$15,4,0)+VLOOKUP($C180,Сценарии!$C$5:$M$15,4,0)+VLOOKUP($D180,Сценарии!$C$5:$M$15,4,0) -> 1408 | H180: =VLOOKUP($B180,Сценарии!$C$5:$M$15,11,0)+VLOOKUP($C180,Сценарии!$C$5:$M$15,11,0)+VLOOKUP($D180,Сценарии!$C$5:$M$15,11,0) -> 3600 | I180: 3
B181: GU1 | C181: GU2 | D181: UL | F181: =VLOOKUP($B181,Сценарии!$C$5:$M$15,2,0)+VLOOKUP($C181,Сценарии!$C$5:$M$15,2,0)+VLOOKUP($D181,Сценарии!$C$5:$M$15,2,0) -> 36 | G181: =VLOOKUP($B181,Сценарии!$C$5:$M$15,4,0)+VLOOKUP($C181,Сценарии!$C$5:$M$15,4,0)+VLOOKUP($D181,Сценарии!$C$5:$M$15,4,0) -> 1920 | H181: =VLOOKUP($B181,Сценарии!$C$5:$M$15,11,0)+VLOOKUP($C181,Сценарии!$C$5:$M$15,11,0)+VLOOKUP($D181,Сценарии!$C$5:$M$15,11,0) -> 3600 | I181: 3
B182: GU1 | C182: GU2 | D182: GUL1 | F182: =VLOOKUP($B182,Сценарии!$C$5:$M$15,2,0)+VLOOKUP($C182,Сценарии!$C$5:$M$15,2,0)+VLOOKUP($D182,Сценарии!$C$5:$M$15,2,0) -> 48 | G182: =VLOOKUP($B182,Сценарии!$C$5:$M$15,4,0)+VLOOKUP($C182,Сценарии!$C$5:$M$15,4,0)+VLOOKUP($D182,Сценарии!$C$5:$M$15,4,0) -> 1664 | H182: =VLOOKUP($B182,Сценарии!$C$5:$M$15,11,0)+VLOOKUP($C182,Сценарии!$C$5:$M$15,11,0)+VLOOKUP($D182,Сценарии!$C$5:$M$15,11,0) -> 3600 | I182: 3
B183: GU1 | C183: GU2 | D183: GUL2 | F183: =VLOOKUP($B183,Сценарии!$C$5:$M$15,2,0)+VLOOKUP($C183,Сценарии!$C$5:$M$15,2,0)+VLOOKUP($D183,Сценарии!$C$5:$M$15,2,0) -> 60 | G183: =VLOOKUP($B183,Сценарии!$C$5:$M$15,4,0)+VLOOKUP($C183,Сценарии!$C$5:$M$15,4,0)+VLOOKUP($D183,Сценарии!$C$5:$M$15,4,0) -> 1536 | H183: =VLOOKUP($B183,Сценарии!$C$5:$M$15,11,0)+VLOOKUP($C183,Сценарии!$C$5:$M$15,11,0)+VLOOKUP($D183,Сценарии!$C$5:$M$15,11,0) -> 3600 | I183: 3
B184: GU1 | C184: GU3 | D184: GU4 | F184: =VLOOKUP($B184,Сценарии!$C$5:$M$15,2,0)+VLOOKUP($C184,Сценарии!$C$5:$M$15,2,0)+VLOOKUP($D184,Сценарии!$C$5:$M$15,2,0) -> 96 | G184: =VLOOKUP($B184,Сценарии!$C$5:$M$15,4,0)+VLOOKUP($C184,Сценарии!$C$5:$M$15,4,0)+VLOOKUP($D184,Сценарии!$C$5:$M$15,4,0) -> 1536 | H184: =VLOOKUP($B184,Сценарии!$C$5:$M$15,11,0)+VLOOKUP($C184,Сценарии!$C$5:$M$15,11,0)+VLOOKUP($D184,Сценарии!$C$5:$M$15,11,0) -> 0 | I184: 3
B185: GU1 | C185: GU3 | D185: GL | F185: =VLOOKUP($B185,Сценарии!$C$5:$M$15,2,0)+VLOOKUP($C185,Сценарии!$C$5:$M$15,2,0)+VLOOKUP($D185,Сценарии!$C$5:$M$15,2,0) -> 84 | G185: =VLOOKUP($B185,Сценарии!$C$5:$M$15,4,0)+VLOOKUP($C185,Сценарии!$C$5:$M$15,4,0)+VLOOKUP($D185,Сценарии!$C$5:$M$15,4,0) -> 1280 | H185: =VLOOKUP($B185,Сценарии!$C$5:$M$15,11,0)+VLOOKUP($C185,Сценарии!$C$5:$M$15,11,0)+VLOOKUP($D185,Сценарии!$C$5:$M$15,11,0) -> 3600 | I185: 3
B186: GU1 | C186: GU3 | D186: UL | F186: =VLOOKUP($B186,Сценарии!$C$5:$M$15,2,0)+VLOOKUP($C186,Сценарии!$C$5:$M$15,2,0)+VLOOKUP($D186,Сценарии!$C$5:$M$15,2,0) -> 48 | G186: =VLOOKUP($B186,Сценарии!$C$5:$M$15,4,0)+VLOOKUP($C186,Сценарии!$C$5:$M$15,4,0)+VLOOKUP($D186,Сценарии!$C$5:$M$15,4,0) -> 1792 | H186: =VLOOKUP($B186,Сценарии!$C$5:$M$15,11,0)+VLOOKUP($C186,Сценарии!$C$5:$M$15,11,0)+VLOOKUP($D186,Сценарии!$C$5:$M$15,11,0) -> 3600 | I186: 3
B187: GU1 | C187: GU3 | D187: GUL1 | F187: =VLOOKUP($B187,Сценарии!$C$5:$M$15,2,0)+VLOOKUP($C187,Сценарии!$C$5:$M$15,2,0)+VLOOKUP($D187,Сценарии!$C$5:$M$15,2,0) -> 60 | G187: =VLOOKUP($B187,Сценарии!$C$5:$M$15,4,0)+VLOOKUP($C187,Сценарии!$C$5:$M$15,4,0)+VLOOKUP($D187,Сценарии!$C$5:$M$15,4,0) -> 1536 | H187: =VLOOKUP($B187,Сценарии!$C$5:$M$15,11,0)+VLOOKUP($C187,Сценарии!$C$5:$M$15,11,0)+VLOOKUP($D187,Сценарии!$C$5:$M$15,11,0) -> 3600 | I187: 3
B188: GU1 | C188: GU3 | D188: GUL2 | F188: =VLOOKUP($B188,Сценарии!$C$5:$M$15,2,0)+VLOOKUP($C188,Сценарии!$C$5:$M$15,2,0)+VLOOKUP($D188,Сценарии!$C$5:$M$15,2,0) -> 72 | G188: =VLOOKUP($B188,Сценарии!$C$5:$M$15,4,0)+VLOOKUP($C188,Сценарии!$C$5:$M$15,4,0)+VLOOKUP($D188,Сценарии!$C$5:$M$15,4,0) -> 1408 | H188: =VLOOKUP($B188,Сценарии!$C$5:$M$15,11,0)+VLOOKUP($C188,Сценарии!$C$5:$M$15,11,0)+VLOOKUP($D188,Сценарии!$C$5:$M$15,11,0) -> 3600 | I188: 3
B189: GU1 | C189: GU4 | D189: GL | F189: =VLOOKUP($B189,Сценарии!$C$5:$M$15,2,0)+VLOOKUP($C189,Сценарии!$C$5:$M$15,2,0)+VLOOKUP($D189,Сценарии!$C$5:$M$15,2,0) -> 96 | G189: =VLOOKUP($B189,Сценарии!$C$5:$M$15,4,0)+VLOOKUP($C189,Сценарии!$C$5:$M$15,4,0)+VLOOKUP($D189,Сценарии!$C$5:$M$15,4,0) -> 1024 | H189: =VLOOKUP($B189,Сценарии!$C$5:$M$15,11,0)+VLOOKUP($C189,Сценарии!$C$5:$M$15,11,0)+VLOOKUP($D189,Сценарии!$C$5:$M$15,11,0) -> 3600 | I189: 3
B190: GU1 | C190: GU4 | D190: UL | F190: =VLOOKUP($B190,Сценарии!$C$5:$M$15,2,0)+VLOOKUP($C190,Сценарии!$C$5:$M$15,2,0)+VLOOKUP($D190,Сценарии!$C$5:$M$15,2,0) -> 60 | G190: =VLOOKUP($B190,Сценарии!$C$5:$M$15,4,0)+VLOOKUP($C190,Сценарии!$C$5:$M$15,4,0)+VLOOKUP($D190,Сценарии!$C$5:$M$15,4,0) -> 1536 | H190: =VLOOKUP($B190,Сценарии!$C$5:$M$15,11,0)+VLOOKUP($C190,Сценарии!$C$5:$M$15,11,0)+VLOOKUP($D190,Сценарии!$C$5:$M$15,11,0) -> 3600 | I190: 3
B191: GU1 | C191: GU4 | D191: GUL1 | F191: =VLOOKUP($B191,Сценарии!$C$5:$M$15,2,0)+VLOOKUP($C191,Сценарии!$C$5:$M$15,2,0)+VLOOKUP($D191,Сценарии!$C$5:$M$15,2,0) -> 72 | G191: =VLOOKUP($B191,Сценарии!$C$5:$M$15,4,0)+VLOOKUP($C191,Сценарии!$C$5:$M$15,4,0)+VLOOKUP($D191,Сценарии!$C$5:$M$15,4,0) -> 1280 | H191: =VLOOKUP($B191,Сценарии!$C$5:$M$15,11,0)+VLOOKUP($C191,Сценарии!$C$5:$M$15,11,0)+VLOOKUP($D191,Сценарии!$C$5:$M$15,11,0) -> 3600 | I191: 3
B192: GU1 | C192: GU4 | D192: GUL2 | F192: =VLOOKUP($B192,Сценарии!$C$5:$M$15,2,0)+VLOOKUP($C192,Сценарии!$C$5:$M$15,2,0)+VLOOKUP($D192,Сценарии!$C$5:$M$15,2,0) -> 84 | G192: =VLOOKUP($B192,Сценарии!$C$5:$M$15,4,0)+VLOOKUP($C192,Сценарии!$C$5:$M$15,4,0)+VLOOKUP($D192,Сценарии!$C$5:$M$15,4,0) -> 1152 | H192: =VLOOKUP($B192,Сценарии!$C$5:$M$15,11,0)+VLOOKUP($C192,Сценарии!$C$5:$M$15,11,0)+VLOOKUP($D192,Сценарии!$C$5:$M$15,11,0) -> 3600 | I192: 3
B193: GU1 | C193: GL | D193: UL | F193: =VLOOKUP($B193,Сценарии!$C$5:$M$15,2,0)+VLOOKUP($C193,Сценарии!$C$5:$M$15,2,0)+VLOOKUP($D193,Сценарии!$C$5:$M$15,2,0) -> 48 | G193: =VLOOKUP($B193,Сценарии!$C$5:$M$15,4,0)+VLOOKUP($C193,Сценарии!$C$5:$M$15,4,0)+VLOOKUP($D193,Сценарии!$C$5:$M$15,4,0) -> 1280 | H193: =VLOOKUP($B193,Сценарии!$C$5:$M$15,11,0)+VLOOKUP($C193,Сценарии!$C$5:$M$15,11,0)+VLOOKUP($D193,Сценарии!$C$5:$M$15,11,0) -> 7200 | I193: 3
B194: GU1 | C194: GL | D194: GUL1 | F194: =VLOOKUP($B194,Сценарии!$C$5:$M$15,2,0)+VLOOKUP($C194,Сценарии!$C$5:$M$15,2,0)+VLOOKUP($D194,Сценарии!$C$5:$M$15,2,0) -> 60 | G194: =VLOOKUP($B194,Сценарии!$C$5:$M$15,4,0)+VLOOKUP($C194,Сценарии!$C$5:$M$15,4,0)+VLOOKUP($D194,Сценарии!$C$5:$M$15,4,0) -> 1024 | H194: =VLOOKUP($B194,Сценарии!$C$5:$M$15,11,0)+VLOOKUP($C194,Сценарии!$C$5:$M$15,11,0)+VLOOKUP($D194,Сценарии!$C$5:$M$15,11,0) -> 7200 | I194: 3
B195: GU1 | C195: GL | D195: GUL2 | F195: =VLOOKUP($B195,Сценарии!$C$5:$M$15,2,0)+VLOOKUP($C195,Сценарии!$C$5:$M$15,2,0)+VLOOKUP($D195,Сценарии!$C$5:$M$15,2,0) -> 72 | G195: =VLOOKUP($B195,Сценарии!$C$5:$M$15,4,0)+VLOOKUP($C195,Сценарии!$C$5:$M$15,4,0)+VLOOKUP($D195,Сценарии!$C$5:$M$15,4,0) -> 896 | H195: =VLOOKUP($B195,Сценарии!$C$5:$M$15,11,0)+VLOOKUP($C195,Сценарии!$C$5:$M$15,11,0)+VLOOKUP($D195,Сценарии!$C$5:$M$15,11,0) -> 7200 | I195: =COUNTA(B195,C195,D195,E195) -> 3
B196: GU1 | C196: UL | D196: GUL1 | F196: =VLOOKUP($B196,Сценарии!$C$5:$M$15,2,0)+VLOOKUP($C196,Сценарии!$C$5:$M$15,2,0)+VLOOKUP($D196,Сценарии!$C$5:$M$15,2,0) -> 24 | G196: =VLOOKUP($B196,Сценарии!$C$5:$M$15,4,0)+VLOOKUP($C196,Сценарии!$C$5:$M$15,4,0)+VLOOKUP($D196,Сценарии!$C$5:$M$15,4,0) -> 1536 | H196: =VLOOKUP($B196,Сценарии!$C$5:$M$15,11,0)+VLOOKUP($C196,Сценарии!$C$5:$M$15,11,0)+VLOOKUP($D196,Сценарии!$C$5:$M$15,11,0) -> 7200 | I196: 3
B197: GU1 | C197: UL | D197: GUL2 | F197: =VLOOKUP($B197,Сценарии!$C$5:$M$15,2,0)+VLOOKUP($C197,Сценарии!$C$5:$M$15,2,0)+VLOOKUP($D197,Сценарии!$C$5:$M$15,2,0) -> 36 | G197: =VLOOKUP($B197,Сценарии!$C$5:$M$15,4,0)+VLOOKUP($C197,Сценарии!$C$5:$M$15,4,0)+VLOOKUP($D197,Сценарии!$C$5:$M$15,4,0) -> 1408 | H197: =VLOOKUP($B197,Сценарии!$C$5:$M$15,11,0)+VLOOKUP($C197,Сценарии!$C$5:$M$15,11,0)+VLOOKUP($D197,Сценарии!$C$5:$M$15,11,0) -> 7200 | I197: 3
B198: GU1 | C198: GUL1 | D198: GUL2 | F198: =VLOOKUP($B198,Сценарии!$C$5:$M$15,2,0)+VLOOKUP($C198,Сценарии!$C$5:$M$15,2,0)+VLOOKUP($D198,Сценарии!$C$5:$M$15,2,0) -> 48 | G198: =VLOOKUP($B198,Сценарии!$C$5:$M$15,4,0)+VLOOKUP($C198,Сценарии!$C$5:$M$15,4,0)+VLOOKUP($D198,Сценарии!$C$5:$M$15,4,0) -> 1152 | H198: =VLOOKUP($B198,Сценарии!$C$5:$M$15,11,0)+VLOOKUP($C198,Сценарии!$C$5:$M$15,11,0)+VLOOKUP($D198,Сценарии!$C$5:$M$15,11,0) -> 7200 | I198: 3
B199: GU2 | C199: GU3 | D199: GU4 | F199: =VLOOKUP($B199,Сценарии!$C$5:$M$15,2,0)+VLOOKUP($C199,Сценарии!$C$5:$M$15,2,0)+VLOOKUP($D199,Сценарии!$C$5:$M$15,2,0) -> 108 | G199: =VLOOKUP($B199,Сценарии!$C$5:$M$15,4,0)+VLOOKUP($C199,Сценарии!$C$5:$M$15,4,0)+VLOOKUP($D199,Сценарии!$C$5:$M$15,4,0) -> 1408 | H199: =VLOOKUP($B199,Сценарии!$C$5:$M$15,11,0)+VLOOKUP($C199,Сценарии!$C$5:$M$15,11,0)+VLOOKUP($D199,Сценарии!$C$5:$M$15,11,0) -> 0 | I199: 3
B200: GU2 | C200: GU3 | D200: GL | F200: =VLOOKUP($B200,Сценарии!$C$5:$M$15,2,0)+VLOOKUP($C200,Сценарии!$C$5:$M$15,2,0)+VLOOKUP($D200,Сценарии!$C$5:$M$15,2,0) -> 96 | G200: =VLOOKUP($B200,Сценарии!$C$5:$M$15,4,0)+VLOOKUP($C200,Сценарии!$C$5:$M$15,4,0)+VLOOKUP($D200,Сценарии!$C$5:$M$15,4,0) -> 1152 | H200: =VLOOKUP($B200,Сценарии!$C$5:$M$15,11,0)+VLOOKUP($C200,Сценарии!$C$5:$M$15,11,0)+VLOOKUP($D200,Сценарии!$C$5:$M$15,11,0) -> 3600 | I200: 3
... 363 more rows
